Workbook

Sheet 1. Info
AB1: Alectra Utilities Corporation - Enersource Hydro
AB2: Alectra Utilities Corporation - Horizon Utilities
AB3: Alectra Utilities Corporation - Hydro One Brampton
AB4: Alectra Utilities Corporation - PowerStream Inc.
AB5: Algoma Power Inc.
AB6: Atikokan Hydro Inc.
AB7: Attawapiskat Power Corp.
AB8: Bluewater Power Distribution Corporation
AB9: Brantford Power Inc.
AB10: Burlington Hydro Inc.
AB11: Canadian Niagara Power Inc.
AB12: Centre Wellington Hydro Ltd.
A13: Drop-down lists are shaded blue; Input cells are shaded green. | AB13: Chapleau Public Utilities Corporation
AB14: COLLUS PowerStream Corporation
C15: Utility Name | D15: Energy + Inc. | AB15: Cooperative Hydro Embrun Inc.
AB16: E.L.K. Energy Inc.
C17: Service Territory | AB17: Energy + Inc.
AB18: Entegrus Powerlines Inc.
C19: Assigned EB Number | D19: EB-2018-0028 | AB19: ENWIN Utilities Ltd.
AB20: Erie Thames Powerlines Corporation
C21: Name and Title | D21: Sarah Hughes, Chief Financial Officer, Finance | AB21: Espanola Regional Hydro Distribution Corporation
AB22: Essex Powerlines Corporation
C23: Phone Number | D23: 519-621-8405 ext 2638 | AB23: Festival Hydro Inc.
AB24: Fort Albany Power Corporation
C25: Email Address | D25: shughes@energyplus.ca | AB25: Fort Frances Power Corporation
AB26: Greater Sudbury Hydro Inc.
C27: Date | AB27: Grimsby Power Inc.
AB28: Guelph Hydro Electric Systems Inc.
C29: Last COS Re-based Year | D29: 2011 | AB29: Halton Hills Hydro Inc.
AB30: Hearst Power Distribution Company Limited
AB31: Hydro 2000 Inc.
AB32: Hydro Hawkesbury Inc.
AB33: Hydro One Networks Inc.
AB34: Hydro One Networks Inc. - Haldimand County Hydro
AB35: Hydro One Networks Inc. - Norfolk Hydro
AB36: Hydro One Networks Inc. - Woodstock Hydro
AB37: Hydro One Remote Communities Inc.
AB38: Hydro Ottawa Limited
AB39: Innpower Corporation
AB40: Kashechewan Power Corporation
AB41: Kenora Hydro Electric Corporation Ltd.
AB42: Kingston Hydro Corporation
AB43: Kitchener-Wilmot Hydro Inc.
AB44: Lakefront Utilities Inc.
AB45: Lakeland Power Distribution Ltd.
AB46: London Hydro Inc.
AB47: Midland Power Utility Corporation
AB48: Milton Hydro Distribution inc.
AB49: Newmarket - Tay Power Distribution Ltd.
AB50: Niagara Peninsula Energy Inc.
AB51: Niagara-on-the-Lake Hydro Inc.
AB52: North Bay Hydro Distribution Limited
AB53: Northern Ontario Wires Inc.
AB54: Oakville Hydro Electricity Distribution Inc.
AB55: Orangeville Hydro Limited
AB56: Orillia Power Distribution Corporation
AB57: Oshawa PUC Networks Inc.
AB58: Ottawa River Power Corporation
AB59: Peterborough Distribution Incorporated
AB60: PUC Distribution Inc.
AB61: Renfrew Hydro Inc.
AB62: Rideau St. Lawrence Distribution Inc.
AB63: Sioux Lookout Hydro Inc.
AB64: St. Thomas Energy Inc.
AB65: Thunder Bay Hydro Electricity Distribution Inc.
AB66: Tillsonburg Hydro Inc.
AB67: Toronto Hydro-Electric System Limited
AB68: Veridian Connections Inc.
AB69: Wasaga Distribution Inc.
AB70: Waterloo North Hydro Inc.
AB71: Welland Hydro Electric System Corp.
AB72: Wellington North Power Inc.
AB73: West Coast Huron Energy Inc.
AB74: Westario Power Inc.
AB75: Whitby Hydro Electric Corporation

Sheet 2. Table of Contents
D20: 1. Info | I20: 6. Historical Wholesale
D22: 2. Table of Contents | I22: 7. Current Wholesale
D24: 3. Rate Classes | I24: 8. Forecast Wholesale
D26: 4. RRR Data | I26: 9. RTSR Rates to Forecast
D28: 5. UTRs and Sub-Transmission

Sheet 3. Rate Classes
C13: 1. Select the appropriate rate classes that appear on your most recent Board-Approved Tariff of Rates and Charges. 2. Enter the RTS Network and Connection Rate as it appears on the Tariff of Rates and Charges
C15: Rate Class | E15: Unit | G15: RTSR-Network | I15: RTSR-Connection
C17: Residential | E17: kWh | G17: 0.005939923871 | I17: 0.0044 | L17: =IF(OR(ISBLANK(C17), ISERROR(FIND("Choose", C17))=FALSE), 0, 1) -> 1 | M17: ="C" & ROW(C17) -> C17 | N17: =IF(OR(C17="General Service Intermediate Rate Class 1,000 To 4,999 kW (formerly General Service > 50 kW Customers)", C17="General Service Intermediate Rate Class 1,000 To 4,999 kW (formerly Large Use Customers)"), "x", "") ->  | W17: Choose Rate Class
C18: General Service Less Than 50 kW | E18: kWh | G18: 0.0052 | I18: 0.0041 | L18: 1 | M18: C18 | N18: =IF(OR(C18="General Service Intermediate Rate Class 1,000 To 4,999 kW (formerly General Service > 50 kW Customers)", C18="General Service Intermediate Rate Class 1,000 To 4,999 kW (formerly Large Use Customers)"), "x", "") ->  | W18: Residential
C19: General Service 50 to 999 kW | E19: kW | G19: 3.3563 | I19: 2.4847 | L19: 1 | M19: C19 | W19: Residential Regular
C20: General Service 1,000 to 4,999 kW | E20: kW | G20: 2.5491 | I20: 1.9499 | L20: 1 | M20: C20 | W20: Residential Urban
C21: Large Use | E21: kW | G21: 2.4156 | I21: 1.9849 | L21: 1 | M21: C21 | W21: Residential Urban Year-Round
C22: Street Lighting | E22: kW | G22: 1.6867 | I22: 1.2486 | L22: 1 | M22: C22 | W22: Residential Suburban
C23: Unmetered Scattered Load | E23: kWh | G23: 0.0052 | I23: 0.0041 | L23: 1 | M23: C23 | W23: Residential Suburban Seasonal
C24: Embedded Distributor | E24: kW | G24: 2.4156 | I24: 1.9849 | L24: 1 | M24: C24 | W24: Residential Suburban Year Round
C25: Embedded Distributor | E25: kW | G25: =G24 -> 2.4156 | I25: =I24 -> 1.9849 | L25: 1 | M25: C25 | W25: Residential - Time of Use
C26: Choose Rate Class | L26: 0 | M26: C26 | W26: Residential - Hensall
C27: Choose Rate Class | L27: 0 | M27: C27 | W27: Residential – High Density [R1]
C28: Choose Rate Class | L28: 0 | M28: C28 | W28: Residential – Normal Density [R2]
C29: Choose Rate Class | L29: 0 | M29: C29 | W29: Seasonal Residential – High Density [R3]
C30: Choose Rate Class | L30: 0 | M30: C30 | W30: Seasonal Residential – Normal Density [R4]
C31: Choose Rate Class | L31: 0 | M31: C31 | W31: Residential – Urban [UR]
C32: Choose Rate Class | L32: 0 | M32: C32 | W32: General Service Less Than 50 kW
C33: Choose Rate Class | L33: 0 | M33: C33 | W33: General Service Less Than 50 kW – Single Phase energy-billed [G1]
C34: Choose Rate Class | L34: 0 | M34: C34 | W34: General Service Less Than 50 kW – Three Phase energy-billed [G3]
C35: Choose Rate Class | L35: 0 | M35: C35 | W35: General Service Less Than 50 kW – Transmission Class energy-billed [T]
C36: Choose Rate Class | L36: 0 | M36: C36 | W36: General Service Less Than 50 kW – Urban energy-billed [UG]
C37: Choose Rate Class | L37: 0 | M37: C37 | W37: Westport Sewage Treatment Plant
C38: Choose Rate Class | L38: 0 | M38: C38 | W38: Small Commercial and USL - per meter
N39: =COUNTIF(N17:N38, "x") -> 0 | W39: Small Commercial and USL - per connection
W40: Farms – Single Phase energy-billed [F1]
W41: General Service 50 to 499 kW
W42: General Service 50 to 699 kW
W43: General Service 50 to 999 kW
W44: General Service 50 to 999 kW - Interval Metered
W45: General Service 50 to 1,000 kW
W46: General Service 50 to 1,000 kW - Interval Meters
W47: General Service 50 to 1,000 kW - Non Interval Meters
W48: General Service 50 to 1,499 kW
W49: General Service 50 to 1,499 kW - Interval Metered
W50: General Service 50 to 2,499 kW
W51: General Service 50 to 2,999 kW
W52: General Service 50 to 2,999 kW - Time of Use
W53: General Service 50 to 4,999 kW
W54: General Service 50 to 4,999 kW – Interval Metered
W55: General Service 50 to 4,999 kW - Time of Use
W56: General Service 50 to 4,999 kW (CoGeneration)
W57: General Service 50 to 4,999 kW (formerly Time of Use)
W58: General Service 500 to 4,999 kW
W59: General Service 700 to 4,999 kW
W60: General Service 1,000 to 2,999 kW
W61: General Service 1,000 to 4,999 kW
W62: General Service 1,000 to 4,999 kW - Interval Meters
W63: General Service 1,000 To 4,999 kW (co-generation)
W64: General Service Greater Than 1,000 kW
W65: General Service Intermediate Rate Class 1,000 To 4,999 kW (formerly Large Use Customers)
W66: General Service Intermediate Rate Class 1,000 To 4,999 kW (formerly General Service > 50 kW Customers)
W67: General Service 1,500 to 4,999 kW
W68: General Service Equal To Or Greater Than 1,500 kW
W69: General Service Equal To Or Greater Than 1,500 kW - Interval Metered
W70: General Service Intermediate 1,000 To 4,999 kW
W71: General Service 2,500 to 4,999 kW
W72: General Service 3,000 to 4,999 kW
W73: General Service 3,000 to 4,999 kW - Interval Metered
W74: General Service 3,000 to 4,999 kW - Intermediate Use
W75: General Service 3,000 to 4,999 kW - Time of Use
W76: Intermediate With Self Generation
W77: General Service - Commercial
W78: General Service - Institutional
W79: Farms – Three Phase energy-billed [F3]
W80: Large Use
W81: Large Use - Regular
W82: Large Use > 5000 kW
W83: Large Use - 3TS
W84: Large Use - Ford Annex
W85: Unmetered Scattered Load
W86: Sentinel Lighting
W87: Street Lighting
W88: Embedded Distributor
W89: Low Voltage Wheeling Charge Rate
W90: Stand-By
W91: Standby Power
W92: Standby Power – INTERIM APPROVAL
W93: Standby Power - APPROVED ON AN INTERIM BASIS
W94: Standby - General Service 50 - 1,000 kW
W95: Standby Power General Service 50 to 1,499 kW
W96: Standby - General Service 1,000 - 5,000 kW
W97: Standby Power General Service 1,500 to 4,999 kW
W98: Standby - Large Use
W99: Standby Power General Service Large Use
W100: Standby Distribution Service

Sheet 4. RRR Data
B15: Rate Class | C15: Rate Description | D15: Unit | E15: Rate | F15: Non-Loss Adjusted Metered kWh | G15: Non-Loss Adjusted Metered kW | H15: Applicable Loss Factor eg: (1.0325) | I15: Loss Adjusted Billed kWh
B17: Residential | C17: RTSR - Network | D17: kWh | E17: 0.005939923871 | F17: 389779994.6 | H17: 1.03068465 | I17: =F17*H17 -> 401740257.3
B18: Residential | C18: RTSR - Connection | D18: kWh | E18: 0.0044 | F18: 389779994.6 | H18: 1.03068465 | I18: =F18*H18 -> 401740257.3
B19: General Service Less Than 50 kW | C19: RTSR - Network | D19: kWh | E19: 0.0052 | F19: 152724958.4 | H19: 1.03068465 | I19: =F19*H19 -> 157411270.3
B20: General Service Less Than 50 kW | C20: RTSR - Connection | D20: kWh | E20: 0.0041 | F20: 152724958.4 | H20: 1.03068465 | I20: =F20*H20 -> 157411270.3
B21: General Service 50 to 999 kW | C21: RTSR - Network | D21: kW | E21: 3.3563 | F21: 423901800.5 | G21: 1355886.709
B22: General Service 50 to 999 kW | C22: RTSR - Connection | D22: kW | E22: 2.4847 | F22: 423901800.5 | G22: 1359673.709
B23: General Service 1,000 to 4,999 kW | C23: RTSR - Network | D23: kW | E23: 2.5491 | F23: 168228492.3 | G23: 444690.8274
B24: General Service 1,000 to 4,999 kW | C24: RTSR - Connection | D24: kW | E24: 1.9499 | F24: 168228492.3 | G24: 480527.8274
B25: Large Use | C25: RTSR - Network | D25: kW | E25: 2.4156 | F25: 145141006.5 | G25: 330833.3107
B26: Large Use | C26: RTSR - Connection | D26: kW | E26: 1.9849 | F26: 145141006.5 | G26: 405209.3107
B27: Street Lighting | C27: RTSR - Network | D27: kW | E27: 1.6867 | F27: 3458011.971 | G27: 9896.266398
B28: Street Lighting | C28: RTSR - Connection | D28: kW | E28: 1.2486 | F28: 3458011.971 | G28: 9896.266398
B29: Unmetered Scattered Load | C29: RTSR - Network | D29: kWh | E29: 0.0052 | F29: 2059804.759 | H29: 1.03068465 | I29: =F29*H29 -> 2123009.147
B30: Unmetered Scattered Load | C30: RTSR - Connection | D30: kWh | E30: 0.0041 | F30: 2059804.759 | H30: 1.03068465 | I30: =F30*H30 -> 2123009.147
B31: Embedded Distributor | C31: RTSR - Network | D31: kW | E31: 2.4156 | F31: 58104381.49 | G31: 114656.8844
B32: Embedded Distributor | C32: RTSR - Connection | D32: kW | E32: 1.9849 | F32: 58104381.49 | G32: 114656.8844
B33: Embedded Distributor | C33: RTSR - Network | D33: kW | E33: 2.4156 | F33: 12605162.22 | G33: 24387.43564
B34: Embedded Distributor | C34: RTSR - Connection | D34: kW | E34: 1.9849 | F34: 12605162.22 | G34: 24387.43564

Sheet 5. UTRs and Sub-Transmission
B18: Uniform Transmission Rates | C18: Unit | E18: 2017 | H18: 2018 | J18: 2019
B20: Rate Description | E20: Rate | H20: Rate | J20: Rate
B22: Network Service Rate | C22: kW | E22: 3.66 | H22: 3.61 | J22: 3.61
B24: Line Connection Service Rate | C24: kW | E24: 0.87 | H24: 0.95 | J24: 0.95
B26: Transformation Connection Service Rate | C26: kW | E26: 2.02 | H26: 2.34 | J26: 2.34
B29: Hydro One Sub-Transmission Rates | C29: Unit | E29: 2017 | H29: 2018 | J29: 2019
B34: Rate Description | E34: Rate | H34: Rate | J34: Rate
B36: Network Service Rate | C36: kW | E36: 3.1942 | H36: 3.1942 | J36: 3.1942
B38: Line Connection Service Rate | C38: kW | E38: 0.771 | H38: 0.771 | J38: 0.771
E39: 1.7493
B40: Transformation Connection Service Rate | C40: kW | H40: 1.7493 | J40: 1.7493
B42: Both Line and Transformation Connection Service Rate | C42: kW | E42: =E39+E38 -> 2.5203 | H42: =SUM(H40,H38) -> 2.5203 | J42: =SUM(J40,J38) -> 2.5203
B45: If needed, add extra host here. (I) | C45: Unit | E45: 2017 | H45: 2018 | J45: 2019
B49: Rate Description | E49: Rate | H49: Rate | J49: Rate
B51: Network Service Rate | C51: kW
B53: Line Connection Service Rate | C53: kW
B55: Transformation Connection Service Rate | C55: kW
B57: Both Line and Transformation Connection Service Rate | C57: kW | E57: =SUM(E53,E55) -> 0 | H57: =SUM(H53,H55) -> 0 | J57: =J55+J53 -> 0
B60: If needed, add extra host here. (II) | C60: Unit | E60: Effective January 1, 2017 | H60: Effective January 1, 2018 | J60: Effective January 1, 2019
B64: Rate Description | E64: Rate | H64: Rate | J64: Rate
B66: Network Service Rate | C66: kW
B68: Line Connection Service Rate | C68: kW
B70: Transformation Connection Service Rate | C70: kW
B72: Both Line and Transformation Connection Service Rate | C72: kW | E72: =SUM(E68,E70) -> 0 | H72: =SUM(H68,H70) -> 0 | J72: =J70+J68 -> 0
E74: Historical 2017 | H74: Current 2018 | J74: Forecast 2019
B75: Low Voltage Switchgear Credit (if applicable, enter as a negative value) | C75: $

Sheet 6. Historical Wholesale
B21: IESO | D21: Network | H21: Line Connection | L21: Transformation Connection | P21: Total Line
B22: Month | D22: Units Billed | E22: Rate | F22: Amount | H22: Units Billed | I22: Rate | J22: Amount | L22: Units Billed | M22: Rate | N22: Amount | P22: Amount
B24: January | D24: 213396 | E24: 3.66 | F24: 781029.36 | H24: 237341 | I24: 0.87 | J24: 206486.67 | L24: 161316 | M24: 2.02 | N24: 325858.32 | P24: =J24+N24 -> 532344.99
B25: February | D25: 206917 | E25: 3.66 | F25: 757316.22 | H25: 222637 | I25: 0.87 | J25: 193694.19 | L25: 146089 | M25: 2.02 | N25: 295099.78 | P25: 488793.97
B26: March | D26: 200773 | E26: 3.66 | F26: 734829.18 | H26: 216787 | I26: 0.87 | J26: 188604.69 | L26: 149426 | M26: 2.02 | N26: 301840.52 | P26: 490445.21
B27: April | D27: 188501 | E27: 3.66 | F27: 689913.66 | H27: 296787.3218 | I27: 0.87 | J27: 258204.97 | L27: 234275.3168 | M27: 2.02 | N27: 473236.14 | P27: 731441.11
B28: May | D28: 211915 | E28: 3.66 | F28: 775608.9 | H28: 222469 | I28: 0.87 | J28: 193548.03 | L28: 154165 | M28: 2.02 | N28: 311413.3 | P28: 504961.33
B29: June | D29: 251957 | E29: 3.66 | F29: 922162.62 | H29: 264468 | I29: 0.87 | J29: 230087.16 | L29: 186572 | M29: 2.02 | N29: 376875.44 | P29: 606962.6
B30: July | D30: 251760 | E30: 3.66 | F30: 921441.6 | H30: 279198 | I30: 0.87 | J30: 242902.26 | L30: 181098 | M30: 2.02 | N30: 365817.96 | P30: 608720.22
B31: August | D31: 237359 | E31: 3.66 | F31: 868733.94 | H31: 251309 | I31: 0.87 | J31: 218638.83 | L31: 167684 | M31: 2.02 | N31: 338721.68 | P31: 557360.51
B32: September | D32: 261407 | E32: 3.66 | F32: 956749.62 | H32: 301252 | I32: 0.87 | J32: 262089.24 | L32: 198455 | M32: 2.02 | N32: 400879.1 | P32: 662968.34
B33: October | D33: 194545 | E33: 3.66 | F33: 712034.7 | H33: 214242 | I33: 0.87 | J33: 186390.54 | L33: 148766 | M33: 2.02 | N33: 300507.32 | P33: 486897.86
B34: November | D34: 113302.0114 | E34: 3.52 | F34: 398823.08 | H34: 245121.6136 | I34: 0.88 | J34: 215707.02 | L34: 233608.3239 | M34: 2.13 | N34: 497585.73 | P34: 713292.75
B35: December | D35: 299830.9886 | E35: 3.52 | F35: 1055405.08 | H35: 199130.3864 | I35: 0.88 | J35: 175234.74 | L35: 71887.67606 | M35: 2.13 | N35: 153120.75 | P35: 328355.49
B37: Total | D37: =SUM(D24:D35) -> 2631663 | E37: =IF(D37<>0,F37/D37,0) -> 3.638022026 | F37: =SUM(F24:F35) -> 9574047.96 | H37: =SUM(H24:H35) -> 2950742.322 | I37: =IF(H37<>0,J37/H37,0) -> 0.8715055601 | J37: =SUM(J24:J35) -> 2571588.34 | L37: =SUM(L24:L35) -> 2033342.317 | M37: =IF(L37<>0,N37/L37,0) -> 2.03652676 | N37: =SUM(N24:N35) -> 4140956.04 | P37: =SUM(P24:P35) -> 6712544.38
B39: Hydro One | D39: Network | H39: Line Connection | L39: Transformation Connection | P39: Total Line
B41: Month | D41: Units Billed | E41: Rate | F41: Amount | H41: Units Billed | I41: Rate | J41: Amount | L41: Units Billed | M41: Rate | N41: Amount | P41: Amount
B43: January | D43: 5308.09 | E43: 3.1942 | F43: 16955.10108 | H43: 5593.37 | I43: 0.771 | J43: 4312.48827 | M43: 0 | P43: =J43+N43 -> 4312.48827
B44: February | D44: 5012.11 | E44: 3.1942 | F44: 16009.68176 | H44: 5256.72 | I44: 0.771 | J44: 4052.93112 | M44: 0 | P44: 4052.93112
B45: March | D45: 4833 | E45: 3.1942 | F45: 15437.5686 | H45: 5126.12 | I45: 0.771 | J45: 3952.23852 | M45: 0 | P45: 3952.23852
B46: April | D46: 4287.64 | E46: 3.1942 | F46: 13695.57969 | H46: 4287.64 | I46: 0.771 | J46: 3305.77044 | M46: 0 | P46: 3305.77044
B47: May | D47: 4529 | E47: 3.1942 | F47: 14466.5318 | H47: 4529 | I47: 0.771 | J47: 3491.859 | M47: 0 | P47: 3491.859
B48: June | D48: 6124.06 | E48: 3.1942 | F48: 19561.47245 | H48: 6124.06 | I48: 0.771 | J48: 4721.65026 | M48: 0 | P48: 4721.65026
B49: July | D49: 5869.94 | E49: 3.1942 | F49: 18749.76235 | H49: 5869.94 | I49: 0.771 | J49: 4525.72374 | M49: 0 | P49: 4525.72374
B50: August | D50: 6129.23 | E50: 3.1942 | F50: 19577.98647 | H50: 6129.23 | I50: 0.771 | J50: 4725.63633 | M50: 0 | P50: 4725.63633
B51: September | D51: 12301.41 | E51: 3.1942 | F51: 39293.16382 | H51: 12301.41 | I51: 0.771 | J51: 9484.38711 | M51: 0 | P51: 9484.38711
B52: October | D52: 5848.5 | E52: 3.1942 | F52: 18681.2787 | H52: 5848.5 | I52: 0.771 | J52: 4509.1935 | M52: 0 | P52: 4509.1935
B53: November | D53: 6321.24 | E53: 3.1942 | F53: 20191.30481 | H53: 6321.24 | I53: 0.771 | J53: 4873.67604 | M53: 0 | P53: 4873.67604
B54: December | D54: 6844.2 | E54: 3.1942 | F54: 21861.74364 | H54: 6844.2 | I54: 0.771 | J54: 5276.8782 | M54: 0 | P54: 5276.8782
B56: Total | D56: =SUM(D43:D54) -> 73408.42 | E56: =IF(D56<>0,F56/D56,0) -> 3.1942 | F56: =SUM(F43:F54) -> 234481.1752 | H56: =SUM(H43:H54) -> 74231.43 | I56: =IF(H56<>0,J56/H56,0) -> 0.771 | J56: =SUM(J43:J54) -> 57232.43253 | L56: =SUM(L43:L54) -> 0 | M56: =IF(L56<>0,N56/L56,0) -> 0 | N56: =SUM(N43:N54) -> 0 | P56: =SUM(P43:P54) -> 57232.43253
B58: Add Extra Host Here (I) | D58: Network | H58: Line Connection | L58: Transformation Connection | P58: Total Line
B59: (if needed)
B60: Month | D60: Units Billed | E60: Rate | F60: Amount | H60: Units Billed | I60: Rate | J60: Amount | L60: Units Billed | M60: Rate | N60: Amount | P60: Amount
B62: January | E62: =IF(D62<>0,F62/D62,0) -> 0 | I62: =IF(H62<>0,J62/H62,0) -> 0 | M62: =IF(L62<>0,N62/L62,0) -> 0 | P62: =J62+N62 -> 0
B63: February | E63: 0 | I63: 0 | M63: 0 | P63: 0
B64: March | E64: 0 | I64: 0 | M64: 0 | P64: 0
B65: April | E65: 0 | I65: 0 | M65: 0 | P65: 0
B66: May | E66: 0 | I66: 0 | M66: 0 | P66: 0
B67: June | E67: 0 | I67: 0 | M67: 0 | P67: 0
B68: July | E68: 0 | I68: 0 | M68: 0 | P68: 0
B69: August | E69: 0 | I69: 0 | M69: 0 | P69: 0
B70: September | E70: 0 | I70: 0 | M70: 0 | P70: 0
B71: October | E71: 0 | I71: 0 | M71: 0 | P71: 0
B72: November | E72: 0 | I72: 0 | M72: 0 | P72: 0
B73: December | E73: 0 | I73: 0 | M73: 0 | P73: 0
B75: Total | D75: =SUM(D62:D73) -> 0 | E75: =IF(D75<>0,F75/D75,0) -> 0 | F75: =SUM(F62:F73) -> 0 | H75: =SUM(H62:H73) -> 0 | I75: =IF(H75<>0,J75/H75,0) -> 0 | J75: =SUM(J62:J73) -> 0 | L75: =SUM(L62:L73) -> 0 | M75: =IF(L75<>0,N75/L75,0) -> 0 | N75: =SUM(N62:N73) -> 0 | P75: =SUM(P62:P73) -> 0
B77: Add Extra Host Here (II) | D77: Network | H77: Line Connection | L77: Transformation Connection | P77: Total Line
B78: (if needed)
B79: Month | D79: Units Billed | E79: Rate | F79: Amount | H79: Units Billed | I79: Rate | J79: Amount | L79: Units Billed | M79: Rate | N79: Amount | P79: Amount
B81: January | E81: =IF(D81<>0,F81/D81,0) -> 0 | I81: =IF(H81<>0,J81/H81,0) -> 0 | M81: =IF(L81<>0,N81/L81,0) -> 0 | P81: =J81+N81 -> 0
B82: February | E82: 0 | I82: 0 | M82: 0 | P82: 0
B83: March | E83: 0 | I83: 0 | M83: 0 | P83: 0
B84: April | E84: 0 | I84: 0 | M84: 0 | P84: 0
B85: May | E85: 0 | I85: 0 | M85: 0 | P85: 0
B86: June | E86: 0 | I86: 0 | M86: 0 | P86: 0
B87: July | E87: 0 | I87: 0 | M87: 0 | P87: 0
B88: August | E88: 0 | I88: 0 | M88: 0 | P88: 0
B89: September | E89: 0 | I89: 0 | M89: 0 | P89: 0
B90: October | E90: 0 | I90: 0 | M90: 0 | P90: 0
B91: November | E91: 0 | I91: 0 | M91: 0 | P91: 0
B92: December | E92: 0 | I92: 0 | M92: 0 | P92: 0
B94: Total | D94: =SUM(D81:D92) -> 0 | E94: =IF(D94<>0,F94/D94,0) -> 0 | F94: =SUM(F81:F92) -> 0 | H94: =SUM(H81:H92) -> 0 | I94: =IF(H94<>0,J94/H94,0) -> 0 | J94: =SUM(J81:J92) -> 0 | L94: =SUM(L81:L92) -> 0 | M94: =IF(L94<>0,N94/L94,0) -> 0 | N94: =SUM(N81:N92) -> 0 | P94: =SUM(P81:P92) -> 0
B96: Total | D96: Network | H96: Line Connection | L96: Transformation Connection | P96: Total Line
B98: Month | D98: Units Billed | E98: Rate | F98: Amount | H98: Units Billed | I98: Rate | J98: Amount | L98: Units Billed | M98: Rate | N98: Amount | P98: Amount
B100: January | D100: =D24+D43+D62+D81 -> 218704.09 | E100: =IF(D100<>0,F100/D100,0) -> 3.648694732 | F100: =F24+F43+F62+F81 -> 797984.4611 | H100: =H24+H43+H62+H81 -> 242934.37 | I100: =IF(H100<>0,J100/H100,0) -> 0.867720604 | J100: =J24+J43+J62+J81 -> 210799.1583 | L100: =L24+L43+L62+L81 -> 161316 | M100: =IF(L100<>0,N100/L100,0) -> 2.02 | N100: =N24+N43+N62+N81 -> 325858.32 | P100: =J100+N100 -> 536657.4783
B101: February | D101: =D25+D44+D63+D82 -> 211929.11 | E101: 3.64898386 | F101: =F25+F44+F63+F82 -> 773325.9018 | H101: =H25+H44+H63+H82 -> 227893.72 | I101: 0.8677164124 | J101: =J25+J44+J63+J82 -> 197747.1211 | L101: =L25+L44+L63+L82 -> 146089 | M101: 2.02 | N101: =N25+N44+N63+N82 -> 295099.78 | P101: 492846.9011
B102: March | D102: 205606 | E102: 3.649050848 | F102: 750266.7486 | H102: 221913.12 | I102: 0.8677131326 | J102: 192556.9285 | L102: 149426 | M102: 2.02 | N102: 301840.52 | P102: 494397.4485
B103: April | D103: 192788.64 | E103: 3.649640558 | F103: 703609.2397 | H103: 301074.9618 | I103: 0.8685901307 | J103: 261510.7404 | L103: 234275.3168 | M103: 2.02 | N103: 473236.14 | P103: 734746.8804
B104: May | D104: 216444 | E104: 3.65025333 | F104: 790075.4318 | H104: 226998 | I104: 0.86802478 | J104: 197039.889 | L104: 154165 | M104: 2.02 | N104: 311413.3 | P104: 508453.189
B105: June | D105: 258081.06 | E105: 3.648946933 | F105: 941724.0925 | H105: 270592.06 | I105: 0.8677594245 | J105: 234808.8103 | L105: 186572 | M105: 2.02 | N105: 376875.44 | P105: 611684.2503
B106: July | D106: 257629.94 | E106: 3.649387033 | F106: 940191.3623 | H106: 285067.94 | I106: 0.8679614542 | J106: 247427.9837 | L106: 181098 | M106: 2.02 | N106: 365817.96 | P106: 613245.9437
B107: August | D107: 243488.23 | E107: 3.648274606 | F107: 888311.9265 | H107: 257438.23 | I107: 0.8676429539 | J107: 223364.4663 | L107: 167684 | M107: 2.02 | N107: 338721.68 | P107: 562086.1463
B108: September | D108: 273708.41 | E108: 3.639065324 | F108: 996042.7838 | H108: 313553.41 | I108: 0.8661160059 | J108: 271573.6271 | L108: 198455 | M108: 2.02 | N108: 400879.1 | P108: 672452.7271
B109: October | D109: 200393.5 | E109: 3.646405591 | F109: 730715.9787 | H109: 220090.5 | I109: 0.8673692572 | J109: 190899.7335 | L109: 148766 | M109: 2.02 | N109: 300507.32 | P109: 491407.0535
B110: November | D110: 119623.2514 | E110: 3.502783782 | F110: 419014.3848 | H110: 251442.8536 | I110: 0.8772597545 | J110: 220580.696 | L110: 233608.3239 | M110: 2.13 | N110: 497585.73 | P110: 718166.426
B111: December | D111: 306675.1886 | E111: 3.512728983 | F111: 1077266.824 | H111: 205974.5864 | I111: 0.8763781075 | J111: 180511.6182 | L111: 71887.67606 | M111: 2.13 | N111: 153120.75 | P111: 333632.3682
B113: Total | D113: =SUM(D100:D111) -> 2705071.42 | E113: =IF(D113<>0,F113/D113,0) -> 3.625977881 | F113: =SUM(F100:F111) -> 9808529.135 | H113: =SUM(H100:H111) -> 3024973.752 | I113: =IF(H113<>0,J113/H113,0) -> 0.8690392011 | J113: =SUM(J100:J111) -> 2628820.773 | L113: =SUM(L100:L111) -> 2033342.317 | M113: =IF(L113<>0,N113/L113,0) -> 2.03652676 | N113: =SUM(N100:N111) -> 4140956.04 | P113: =SUM(P100:P111) -> 6769776.813
N115: Low Voltage Switchgear Credit (if applicable) | P115: ='5. UTRs and Sub-Transmission'!E75 -> 0
N117: Total including deduction for Low Voltage Switchgear Credit | P117: =P113+P115 -> 6769776.813

Sheet 7. Current Wholesale
B13: The purpose of this sheet is to calculate the expected billing when current 2018 Uniform Transmission Rates are applied against historical 2017 transmission units.
B20: IESO | D20: Network | H20: Line Connection | L20: Transformation Connection | P20: Total Line
B22: Month | D22: Units Billed | E22: Rate | F22: Amount | H22: Units Billed | I22: Rate | J22: Amount | L22: Units Billed | M22: Rate | N22: Amount | P22: Amount
B24: January | D24: ='6. Historical Wholesale'!D24 -> 213396 | E24: ='5. UTRs and Sub-Transmission'!H22 -> 3.61 | F24: =D24*E24 -> 770359.56 | H24: ='6. Historical Wholesale'!H24 -> 237341 | I24: ='5. UTRs and Sub-Transmission'!H24 -> 0.95 | J24: =H24*I24 -> 225473.95 | L24: ='6. Historical Wholesale'!L24 -> 161316 | M24: ='5. UTRs and Sub-Transmission'!H26 -> 2.34 | N24: =L24*M24 -> 377479.44 | P24: =J24+N24 -> 602953.39
B25: February | D25: ='6. Historical Wholesale'!D25 -> 206917 | E25: =E24 -> 3.61 | F25: =D25*E25 -> 746970.37 | H25: ='6. Historical Wholesale'!H25 -> 222637 | I25: =I24 -> 0.95 | J25: =H25*I25 -> 211505.15 | L25: ='6. Historical Wholesale'!L25 -> 146089 | M25: =M24 -> 2.34 | N25: =L25*M25 -> 341848.26 | P25: 553353.41
B26: March | D26: ='6. Historical Wholesale'!D26 -> 200773 | E26: =E25 -> 3.61 | F26: 724790.53 | H26: ='6. Historical Wholesale'!H26 -> 216787 | I26: =I25 -> 0.95 | J26: 205947.65 | L26: ='6. Historical Wholesale'!L26 -> 149426 | M26: =M25 -> 2.34 | N26: 349656.84 | P26: 555604.49
B27: April | D27: ='6. Historical Wholesale'!D27 -> 188501 | E27: 3.61 | F27: 680488.61 | H27: ='6. Historical Wholesale'!H27 -> 296787.3218 | I27: 0.95 | J27: 281947.9557 | L27: ='6. Historical Wholesale'!L27 -> 234275.3168 | M27: 2.34 | N27: 548204.2414 | P27: 830152.1971
B28: May | D28: ='6. Historical Wholesale'!D28 -> 211915 | E28: 3.61 | F28: 765013.15 | H28: ='6. Historical Wholesale'!H28 -> 222469 | I28: 0.95 | J28: 211345.55 | L28: ='6. Historical Wholesale'!L28 -> 154165 | M28: 2.34 | N28: 360746.1 | P28: 572091.65
B29: June | D29: ='6. Historical Wholesale'!D29 -> 251957 | E29: 3.61 | F29: 909564.77 | H29: ='6. Historical Wholesale'!H29 -> 264468 | I29: 0.95 | J29: 251244.6 | L29: ='6. Historical Wholesale'!L29 -> 186572 | M29: 2.34 | N29: 436578.48 | P29: 687823.08
B30: July | D30: ='6. Historical Wholesale'!D30 -> 251760 | E30: 3.61 | F30: 908853.6 | H30: ='6. Historical Wholesale'!H30 -> 279198 | I30: 0.95 | J30: 265238.1 | L30: ='6. Historical Wholesale'!L30 -> 181098 | M30: 2.34 | N30: 423769.32 | P30: 689007.42
B31: August | D31: ='6. Historical Wholesale'!D31 -> 237359 | E31: 3.61 | F31: 856865.99 | H31: ='6. Historical Wholesale'!H31 -> 251309 | I31: 0.95 | J31: 238743.55 | L31: ='6. Historical Wholesale'!L31 -> 167684 | M31: 2.34 | N31: 392380.56 | P31: 631124.11
B32: September | D32: ='6. Historical Wholesale'!D32 -> 261407 | E32: 3.61 | F32: 943679.27 | H32: ='6. Historical Wholesale'!H32 -> 301252 | I32: 0.95 | J32: 286189.4 | L32: ='6. Historical Wholesale'!L32 -> 198455 | M32: 2.34 | N32: 464384.7 | P32: 750574.1
B33: October | D33: ='6. Historical Wholesale'!D33 -> 194545 | E33: 3.61 | F33: 702307.45 | H33: ='6. Historical Wholesale'!H33 -> 214242 | I33: 0.95 | J33: 203529.9 | L33: ='6. Historical Wholesale'!L33 -> 148766 | M33: 2.34 | N33: 348112.44 | P33: 551642.34
B34: November | D34: ='6. Historical Wholesale'!D34 -> 113302.0114 | E34: 3.61 | F34: 409020.261 | H34: ='6. Historical Wholesale'!H34 -> 245121.6136 | I34: 0.95 | J34: 232865.533 | L34: ='6. Historical Wholesale'!L34 -> 233608.3239 | M34: 2.34 | N34: 546643.478 | P34: 779509.011
B35: December | D35: ='6. Historical Wholesale'!D35 -> 299830.9886 | E35: 3.61 | F35: 1082389.869 | H35: ='6. Historical Wholesale'!H35 -> 199130.3864 | I35: 0.95 | J35: 189173.867 | L35: ='6. Historical Wholesale'!L35 -> 71887.67606 | M35: 2.34 | N35: 168217.162 | P35: 357391.029
B37: Total | D37: =SUM(D24:D35) -> 2631663 | E37: =IF(D37<>0,F37/D37,0) -> 3.61 | F37: =SUM(F24:F35) -> 9500303.43 | H37: =SUM(H24:H35) -> 2950742.322 | I37: =IF(H37<>0,J37/H37,0) -> 0.95 | J37: =SUM(J24:J35) -> 2803205.206 | L37: =SUM(L24:L35) -> 2033342.317 | M37: =IF(L37<>0,N37/L37,0) -> 2.34 | N37: =SUM(N24:N35) -> 4758021.021 | P37: =SUM(P24:P35) -> 7561226.227
B39: Hydro One | D39: Network | H39: Line Connection | L39: Transformation Connection | P39: Total Line
B41: Month | D41: Units Billed | E41: Rate | F41: Amount | H41: Units Billed | I41: Rate | J41: Amount | L41: Units Billed | M41: Rate | N41: Amount | P41: Amount
B43: January | D43: ='6. Historical Wholesale'!D43 -> 5308.09 | E43: ='5. UTRs and Sub-Transmission'!H36 -> 3.1942 | F43: =D43*E43 -> 16955.10108 | H43: ='6. Historical Wholesale'!H43 -> 5593.37 | I43: ='5. UTRs and Sub-Transmission'!H38 -> 0.771 | J43: =H43*I43 -> 4312.48827 | L43: ='6. Historical Wholesale'!L43 -> 0 | M43: ='5. UTRs and Sub-Transmission'!H40 -> 1.7493 | N43: =L43*M43 -> 0 | P43: =J43+N43 -> 4312.48827
B44: February | D44: ='6. Historical Wholesale'!D44 -> 5012.11 | E44: =E43 -> 3.1942 | F44: =D44*E44 -> 16009.68176 | H44: ='6. Historical Wholesale'!H44 -> 5256.72 | I44: =I43 -> 0.771 | J44: =H44*I44 -> 4052.93112 | L44: ='6. Historical Wholesale'!L44 -> 0 | M44: =M43 -> 1.7493 | N44: =L44*M44 -> 0 | P44: 4052.93112
B45: March | D45: ='6. Historical Wholesale'!D45 -> 4833 | E45: 3.1942 | F45: 15437.5686 | H45: ='6. Historical Wholesale'!H45 -> 5126.12 | I45: 0.771 | J45: 3952.23852 | L45: ='6. Historical Wholesale'!L45 -> 0 | M45: =M44 -> 1.7493 | N45: 0 | P45: 3952.23852
B46: April | D46: ='6. Historical Wholesale'!D46 -> 4287.64 | E46: 3.1942 | F46: 13695.57969 | H46: ='6. Historical Wholesale'!H46 -> 4287.64 | I46: 0.771 | J46: 3305.77044 | L46: ='6. Historical Wholesale'!L46 -> 0 | M46: =M45 -> 1.7493 | N46: 0 | P46: 3305.77044
B47: May | D47: ='6. Historical Wholesale'!D47 -> 4529 | E47: 3.1942 | F47: 14466.5318 | H47: ='6. Historical Wholesale'!H47 -> 4529 | I47: 0.771 | J47: 3491.859 | L47: ='6. Historical Wholesale'!L47 -> 0 | M47: 1.7493 | N47: 0 | P47: 3491.859
B48: June | D48: ='6. Historical Wholesale'!D48 -> 6124.06 | E48: 3.1942 | F48: 19561.47245 | H48: ='6. Historical Wholesale'!H48 -> 6124.06 | I48: 0.771 | J48: 4721.65026 | L48: ='6. Historical Wholesale'!L48 -> 0 | M48: 1.7493 | N48: 0 | P48: 4721.65026
B49: July | D49: ='6. Historical Wholesale'!D49 -> 5869.94 | E49: 3.1942 | F49: 18749.76235 | H49: ='6. Historical Wholesale'!H49 -> 5869.94 | I49: 0.771 | J49: 4525.72374 | L49: ='6. Historical Wholesale'!L49 -> 0 | M49: 1.7493 | N49: 0 | P49: 4525.72374
B50: August | D50: ='6. Historical Wholesale'!D50 -> 6129.23 | E50: 3.1942 | F50: 19577.98647 | H50: ='6. Historical Wholesale'!H50 -> 6129.23 | I50: 0.771 | J50: 4725.63633 | L50: ='6. Historical Wholesale'!L50 -> 0 | M50: 1.7493 | N50: 0 | P50: 4725.63633
B51: September | D51: ='6. Historical Wholesale'!D51 -> 12301.41 | E51: 3.1942 | F51: 39293.16382 | H51: ='6. Historical Wholesale'!H51 -> 12301.41 | I51: 0.771 | J51: 9484.38711 | L51: ='6. Historical Wholesale'!L51 -> 0 | M51: 1.7493 | N51: 0 | P51: 9484.38711
B52: October | D52: ='6. Historical Wholesale'!D52 -> 5848.5 | E52: 3.1942 | F52: 18681.2787 | H52: ='6. Historical Wholesale'!H52 -> 5848.5 | I52: 0.771 | J52: 4509.1935 | L52: ='6. Historical Wholesale'!L52 -> 0 | M52: 1.7493 | N52: 0 | P52: 4509.1935
B53: November | D53: ='6. Historical Wholesale'!D53 -> 6321.24 | E53: 3.1942 | F53: 20191.30481 | H53: ='6. Historical Wholesale'!H53 -> 6321.24 | I53: 0.771 | J53: 4873.67604 | L53: ='6. Historical Wholesale'!L53 -> 0 | M53: 1.7493 | N53: 0 | P53: 4873.67604
B54: December | D54: ='6. Historical Wholesale'!D54 -> 6844.2 | E54: 3.1942 | F54: 21861.74364 | H54: ='6. Historical Wholesale'!H54 -> 6844.2 | I54: 0.771 | J54: 5276.8782 | L54: ='6. Historical Wholesale'!L54 -> 0 | M54: 1.7493 | N54: 0 | P54: 5276.8782
B56: Total | D56: =SUM(D43:D54) -> 73408.42 | E56: =IF(D56<>0,F56/D56,0) -> 3.1942 | F56: =SUM(F43:F54) -> 234481.1752 | H56: =SUM(H43:H54) -> 74231.43 | I56: =IF(H56<>0,J56/H56,0) -> 0.771 | J56: =SUM(J43:J54) -> 57232.43253 | L56: =SUM(L43:L54) -> 0 | M56: =IF(L56<>0,N56/L56,0) -> 0 | N56: =SUM(N43:N54) -> 0 | P56: =SUM(P43:P54) -> 57232.43253
B58: ='6. Historical Wholesale'!B58 -> Add Extra Host Here (I) | D58: Network | H58: Line Connection | L58: Transformation Connection | P58: Total Line
B60: Month | D60: Units Billed | E60: Rate | F60: Amount | H60: Units Billed | I60: Rate | J60: Amount | L60: Units Billed | M60: Rate | N60: Amount | P60: Amount
B62: January | D62: ='6. Historical Wholesale'!D62 -> 0 | E62: ='5. UTRs and Sub-Transmission'!H51 -> 0 | F62: =D62*E62 -> 0 | H62: ='6. Historical Wholesale'!H62 -> 0 | I62: ='5. UTRs and Sub-Transmission'!H53 -> 0 | J62: =H62*I62 -> 0 | L62: ='6. Historical Wholesale'!L62 -> 0 | M62: ='5. UTRs and Sub-Transmission'!H55 -> 0 | N62: =L62*M62 -> 0 | P62: =J62+N62 -> 0
B63: February | D63: ='6. Historical Wholesale'!D63 -> 0 | E63: =E62 -> 0 | F63: =D63*E63 -> 0 | H63: ='6. Historical Wholesale'!H63 -> 0 | I63: =I62 -> 0 | J63: =H63*I63 -> 0 | L63: ='6. Historical Wholesale'!L63 -> 0 | M63: =M62 -> 0 | N63: =L63*M63 -> 0 | P63: 0
B64: March | D64: ='6. Historical Wholesale'!D64 -> 0 | E64: =E63 -> 0 | F64: 0 | H64: ='6. Historical Wholesale'!H64 -> 0 | I64: =I63 -> 0 | J64: 0 | L64: ='6. Historical Wholesale'!L64 -> 0 | M64: =M63 -> 0 | N64: 0 | P64: 0
B65: April | D65: ='6. Historical Wholesale'!D65 -> 0 | E65: 0 | F65: 0 | H65: ='6. Historical Wholesale'!H65 -> 0 | I65: 0 | J65: 0 | L65: ='6. Historical Wholesale'!L65 -> 0 | M65: =M64 -> 0 | N65: 0 | P65: 0
B66: May | D66: ='6. Historical Wholesale'!D66 -> 0 | E66: 0 | F66: 0 | H66: ='6. Historical Wholesale'!H66 -> 0 | I66: 0 | J66: 0 | L66: ='6. Historical Wholesale'!L66 -> 0 | M66: 0 | N66: 0 | P66: 0
B67: June | D67: ='6. Historical Wholesale'!D67 -> 0 | E67: 0 | F67: 0 | H67: ='6. Historical Wholesale'!H67 -> 0 | I67: 0 | J67: 0 | L67: ='6. Historical Wholesale'!L67 -> 0 | M67: 0 | N67: 0 | P67: 0
B68: July | D68: ='6. Historical Wholesale'!D68 -> 0 | E68: 0 | F68: 0 | H68: ='6. Historical Wholesale'!H68 -> 0 | I68: 0 | J68: 0 | L68: ='6. Historical Wholesale'!L68 -> 0 | M68: 0 | N68: 0 | P68: 0
B69: August | D69: ='6. Historical Wholesale'!D69 -> 0 | E69: 0 | F69: 0 | H69: ='6. Historical Wholesale'!H69 -> 0 | I69: 0 | J69: 0 | L69: ='6. Historical Wholesale'!L69 -> 0 | M69: 0 | N69: 0 | P69: 0
B70: September | D70: ='6. Historical Wholesale'!D70 -> 0 | E70: 0 | F70: 0 | H70: ='6. Historical Wholesale'!H70 -> 0 | I70: 0 | J70: 0 | L70: ='6. Historical Wholesale'!L70 -> 0 | M70: 0 | N70: 0 | P70: 0
B71: October | D71: ='6. Historical Wholesale'!D71 -> 0 | E71: 0 | F71: 0 | H71: ='6. Historical Wholesale'!H71 -> 0 | I71: 0 | J71: 0 | L71: ='6. Historical Wholesale'!L71 -> 0 | M71: 0 | N71: 0 | P71: 0
B72: November | D72: ='6. Historical Wholesale'!D72 -> 0 | E72: 0 | F72: 0 | H72: ='6. Historical Wholesale'!H72 -> 0 | I72: 0 | J72: 0 | L72: ='6. Historical Wholesale'!L72 -> 0 | M72: 0 | N72: 0 | P72: 0
B73: December | D73: ='6. Historical Wholesale'!D73 -> 0 | E73: 0 | F73: 0 | H73: ='6. Historical Wholesale'!H73 -> 0 | I73: 0 | J73: 0 | L73: ='6. Historical Wholesale'!L73 -> 0 | M73: 0 | N73: 0 | P73: 0
B75: Total | D75: =SUM(D62:D73) -> 0 | E75: =IF(D75<>0,F75/D75,0) -> 0 | F75: =SUM(F62:F73) -> 0 | H75: =SUM(H62:H73) -> 0 | I75: =IF(H75<>0,J75/H75,0) -> 0 | J75: =SUM(J62:J73) -> 0 | L75: =SUM(L62:L73) -> 0 | M75: =IF(L75<>0,N75/L75,0) -> 0 | N75: =SUM(N62:N73) -> 0 | P75: =SUM(P62:P73) -> 0
B77: ='6. Historical Wholesale'!B77 -> Add Extra Host Here (II) | D77: Network | H77: Line Connection | L77: Transformation Connection | P77: Total Line
B79: Month | D79: Units Billed | E79: Rate | F79: Amount | H79: Units Billed | I79: Rate | J79: Amount | L79: Units Billed | M79: Rate | N79: Amount | P79: Amount
B81: January | D81: ='6. Historical Wholesale'!D81 -> 0 | E81: ='5. UTRs and Sub-Transmission'!H66 -> 0 | F81: =D81*E81 -> 0 | H81: ='6. Historical Wholesale'!H81 -> 0 | I81: ='5. UTRs and Sub-Transmission'!H68 -> 0 | J81: =H81*I81 -> 0 | L81: ='6. Historical Wholesale'!L81 -> 0 | M81: ='5. UTRs and Sub-Transmission'!H70 -> 0 | N81: =L81*M81 -> 0 | P81: =J81+N81 -> 0
B82: February | D82: ='6. Historical Wholesale'!D82 -> 0 | E82: =E81 -> 0 | F82: =D82*E82 -> 0 | H82: ='6. Historical Wholesale'!H82 -> 0 | I82: =I81 -> 0 | J82: =H82*I82 -> 0 | L82: ='6. Historical Wholesale'!L82 -> 0 | M82: =M81 -> 0 | N82: =L82*M82 -> 0 | P82: 0
B83: March | D83: ='6. Historical Wholesale'!D83 -> 0 | E83: =E82 -> 0 | F83: 0 | H83: ='6. Historical Wholesale'!H83 -> 0 | I83: =I82 -> 0 | J83: 0 | L83: ='6. Historical Wholesale'!L83 -> 0 | M83: =M82 -> 0 | N83: 0 | P83: 0
B84: April | D84: ='6. Historical Wholesale'!D84 -> 0 | E84: 0 | F84: 0 | H84: ='6. Historical Wholesale'!H84 -> 0 | I84: 0 | J84: 0 | L84: ='6. Historical Wholesale'!L84 -> 0 | M84: =M83 -> 0 | N84: 0 | P84: 0
B85: May | D85: ='6. Historical Wholesale'!D85 -> 0 | E85: 0 | F85: 0 | H85: ='6. Historical Wholesale'!H85 -> 0 | I85: 0 | J85: 0 | L85: ='6. Historical Wholesale'!L85 -> 0 | M85: 0 | N85: 0 | P85: 0
B86: June | D86: ='6. Historical Wholesale'!D86 -> 0 | E86: 0 | F86: 0 | H86: ='6. Historical Wholesale'!H86 -> 0 | I86: 0 | J86: 0 | L86: ='6. Historical Wholesale'!L86 -> 0 | M86: 0 | N86: 0 | P86: 0
B87: July | D87: ='6. Historical Wholesale'!D87 -> 0 | E87: 0 | F87: 0 | H87: ='6. Historical Wholesale'!H87 -> 0 | I87: 0 | J87: 0 | L87: ='6. Historical Wholesale'!L87 -> 0 | M87: 0 | N87: 0 | P87: 0
B88: August | D88: ='6. Historical Wholesale'!D88 -> 0 | E88: 0 | F88: 0 | H88: ='6. Historical Wholesale'!H88 -> 0 | I88: 0 | J88: 0 | L88: ='6. Historical Wholesale'!L88 -> 0 | M88: 0 | N88: 0 | P88: 0
B89: September | D89: ='6. Historical Wholesale'!D89 -> 0 | E89: 0 | F89: 0 | H89: ='6. Historical Wholesale'!H89 -> 0 | I89: 0 | J89: 0 | L89: ='6. Historical Wholesale'!L89 -> 0 | M89: 0 | N89: 0 | P89: 0
B90: October | D90: ='6. Historical Wholesale'!D90 -> 0 | E90: 0 | F90: 0 | H90: ='6. Historical Wholesale'!H90 -> 0 | I90: 0 | J90: 0 | L90: ='6. Historical Wholesale'!L90 -> 0 | M90: 0 | N90: 0 | P90: 0
B91: November | D91: ='6. Historical Wholesale'!D91 -> 0 | E91: 0 | F91: 0 | H91: ='6. Historical Wholesale'!H91 -> 0 | I91: 0 | J91: 0 | L91: ='6. Historical Wholesale'!L91 -> 0 | M91: 0 | N91: 0 | P91: 0
B92: December | D92: ='6. Historical Wholesale'!D92 -> 0 | E92: 0 | F92: 0 | H92: ='6. Historical Wholesale'!H92 -> 0 | I92: 0 | J92: 0 | L92: ='6. Historical Wholesale'!L92 -> 0 | M92: 0 | N92: 0 | P92: 0
B94: Total | D94: =SUM(D81:D92) -> 0 | E94: =IF(D94<>0,F94/D94,0) -> 0 | F94: =SUM(F81:F92) -> 0 | H94: =SUM(H81:H92) -> 0 | I94: =IF(H94<>0,J94/H94,0) -> 0 | J94: =SUM(J81:J92) -> 0 | L94: =SUM(L81:L92) -> 0 | M94: =IF(L94<>0,N94/L94,0) -> 0 | N94: =SUM(N81:N92) -> 0 | P94: =SUM(P81:P92) -> 0
B96: Total | D96: Network | H96: Line Connection | L96: Transformation Connection | P96: Total Line
B98: Month | D98: Units Billed | E98: Rate | F98: Amount | H98: Units Billed | I98: Rate | J98: Amount | L98: Units Billed | M98: Rate | N98: Amount | P98: Amount
B100: January | D100: =D24+D43+D62+D81 -> 218704.09 | E100: =IF(D100<>0,F100/D100,0) -> 3.599908265 | F100: =F24+F43+F62+F81 -> 787314.6611 | H100: =H24+H43+H62+H81 -> 242934.37 | I100: =IF(H100<>0,J100/H100,0) -> 0.9458786678 | J100: =J24+J43+J62+J81 -> 229786.4383 | L100: =L24+L43+L62+L81 -> 161316 | M100: =IF(L100<>0,N100/L100,0) -> 2.34 | N100: =N24+N43+N62+N81 -> 377479.44 | P100: =J100+N100 -> 607265.8783
B101: February | D101: =D25+D44+D63+D82 -> 211929.11 | E101: 3.600166356 | F101: =F25+F44+F63+F82 -> 762980.0518 | H101: =H25+H44+H63+H82 -> 227893.72 | I101: 0.945871089 | J101: =J25+J44+J63+J82 -> 215558.0811 | L101: =L25+L44+L63+L82 -> 146089 | M101: 2.34 | N101: =N25+N44+N63+N82 -> 341848.26 | P101: 557406.3411
B102: March | D102: 205606 | E102: 3.600226154 | F102: 740228.0986 | H102: 221913.12 | I102: 0.9458651589 | J102: 209899.8885 | L102: 149426 | M102: 2.34 | N102: 349656.84 | P102: 559556.7285
B103: April | D103: 192788.64 | E103: 3.600752563 | F103: 694184.1897 | H103: 301074.9618 | I103: 0.9474508423 | J103: 285253.7262 | L103: 234275.3168 | M103: 2.34 | N103: 548204.2414 | P103: 833457.9676
B104: May | D104: 216444 | E104: 3.601299559 | F104: 779479.6818 | H104: 226998 | I104: 0.9464286425 | J104: 214837.409 | L104: 154165 | M104: 2.34 | N104: 360746.1 | P104: 575583.509
B105: June | D105: 258081.06 | E105: 3.600133394 | F105: 929126.2425 | H105: 270592.06 | I105: 0.9459488584 | J105: 255966.2503 | L105: 186572 | M105: 2.34 | N105: 436578.48 | P105: 692544.7303
B106: July | D106: 257629.94 | E106: 3.600526252 | F106: 927603.3623 | H106: 285067.94 | I106: 0.9463141444 | J106: 269763.8237 | L106: 181098 | M106: 2.34 | N106: 423769.32 | P106: 693533.1437
B107: August | D107: 243488.23 | E107: 3.599533236 | F107: 876443.9765 | H107: 257438.23 | I107: 0.9457382702 | J107: 243469.1863 | L107: 167684 | M107: 2.34 | N107: 392380.56 | P107: 635849.7463
B108: September | D108: 273708.41 | E108: 3.591312499 | F108: 982972.4338 | H108: 313553.41 | I108: 0.9429774248 | J108: 295673.7871 | L108: 198455 | M108: 2.34 | N108: 464384.7 | P108: 760058.4871
B109: October | D109: 200393.5 | E109: 3.597864844 | F109: 720988.7287 | H109: 220090.5 | I109: 0.9452434044 | J109: 208039.0935 | L109: 148766 | M109: 2.34 | N109: 348112.44 | P109: 556151.5335
B110: November | D110: 119623.2514 | E110: 3.58802792 | F110: 429211.5658 | H110: 251442.8536 | I110: 0.9454999637 | J110: 237739.209 | L110: 233608.3239 | M110: 2.34 | N110: 546643.478 | P110: 784382.687
B111: December | D111: 306675.1886 | E111: 3.600720415 | F111: 1104251.613 | H111: 205974.5864 | I111: 0.9440521216 | J111: 194450.7452 | L111: 71887.67606 | M111: 2.34 | N111: 168217.162 | P111: 362667.9072
B113: Total | D113: =SUM(D100:D111) -> 2705071.42 | E113: =IF(D113<>0,F113/D113,0) -> 3.598716298 | F113: =SUM(F100:F111) -> 9734784.605 | H113: =SUM(H100:H111) -> 3024973.752 | I113: =IF(H113<>0,J113/H113,0) -> 0.9456074244 | J113: =SUM(J100:J111) -> 2860437.638 | L113: =SUM(L100:L111) -> 2033342.317 | M113: =IF(L113<>0,N113/L113,0) -> 2.34 | N113: =SUM(N100:N111) -> 4758021.021 | P113: =SUM(P100:P111) -> 7618458.66
N115: Low Voltage Switchgear Credit (if applicable) | P115: ='5. UTRs and Sub-Transmission'!H75 -> 0
N117: Total including deduction for Low Voltage Switchgear Credit | P117: =P113+P115 -> 7618458.66

Sheet 8. Forecast Wholesale
B13: The purpose of this sheet is to calculate the expected billing when forecasted 2019 Uniform Transmission Rates are applied against historical 2017 transmission units.
B20: IESO | D20: Network | H20: Line Connection | L20: Transformation Connection | P20: Total Line
B22: Month | D22: Units Billed | E22: Rate | F22: Amount | H22: Units Billed | I22: Rate | J22: Amount | L22: Units Billed | M22: Rate | N22: Amount | P22: Amount
B24: January | D24: ='6. Historical Wholesale'!D24 -> 213396 | E24: ='5. UTRs and Sub-Transmission'!J22 -> 3.61 | F24: =D24*E24 -> 770359.56 | H24: ='6. Historical Wholesale'!H24 -> 237341 | I24: ='5. UTRs and Sub-Transmission'!J24 -> 0.95 | J24: =H24*I24 -> 225473.95 | L24: ='6. Historical Wholesale'!L24 -> 161316 | M24: ='5. UTRs and Sub-Transmission'!J26 -> 2.34 | N24: =L24*M24 -> 377479.44 | P24: =J24+N24 -> 602953.39
B25: February | D25: ='6. Historical Wholesale'!D25 -> 206917 | E25: =E24 -> 3.61 | F25: 746970.37 | H25: ='6. Historical Wholesale'!H25 -> 222637 | I25: =I24 -> 0.95 | J25: 211505.15 | L25: ='6. Historical Wholesale'!L25 -> 146089 | M25: =M24 -> 2.34 | N25: 341848.26 | P25: 553353.41
B26: March | D26: ='6. Historical Wholesale'!D26 -> 200773 | E26: 3.61 | F26: 724790.53 | H26: ='6. Historical Wholesale'!H26 -> 216787 | I26: 0.95 | J26: 205947.65 | L26: ='6. Historical Wholesale'!L26 -> 149426 | M26: 2.34 | N26: 349656.84 | P26: 555604.49
B27: April | D27: ='6. Historical Wholesale'!D27 -> 188501 | E27: 3.61 | F27: 680488.61 | H27: ='6. Historical Wholesale'!H27 -> 296787.3218 | I27: 0.95 | J27: 281947.9557 | L27: ='6. Historical Wholesale'!L27 -> 234275.3168 | M27: 2.34 | N27: 548204.2414 | P27: 830152.1971
B28: May | D28: ='6. Historical Wholesale'!D28 -> 211915 | E28: 3.61 | F28: 765013.15 | H28: ='6. Historical Wholesale'!H28 -> 222469 | I28: 0.95 | J28: 211345.55 | L28: ='6. Historical Wholesale'!L28 -> 154165 | M28: 2.34 | N28: 360746.1 | P28: 572091.65
B29: June | D29: ='6. Historical Wholesale'!D29 -> 251957 | E29: 3.61 | F29: 909564.77 | H29: ='6. Historical Wholesale'!H29 -> 264468 | I29: 0.95 | J29: 251244.6 | L29: ='6. Historical Wholesale'!L29 -> 186572 | M29: 2.34 | N29: 436578.48 | P29: 687823.08
B30: July | D30: ='6. Historical Wholesale'!D30 -> 251760 | E30: 3.61 | F30: 908853.6 | H30: ='6. Historical Wholesale'!H30 -> 279198 | I30: 0.95 | J30: 265238.1 | L30: ='6. Historical Wholesale'!L30 -> 181098 | M30: 2.34 | N30: 423769.32 | P30: 689007.42
B31: August | D31: ='6. Historical Wholesale'!D31 -> 237359 | E31: 3.61 | F31: 856865.99 | H31: ='6. Historical Wholesale'!H31 -> 251309 | I31: 0.95 | J31: 238743.55 | L31: ='6. Historical Wholesale'!L31 -> 167684 | M31: 2.34 | N31: 392380.56 | P31: 631124.11
B32: September | D32: ='6. Historical Wholesale'!D32 -> 261407 | E32: 3.61 | F32: 943679.27 | H32: ='6. Historical Wholesale'!H32 -> 301252 | I32: 0.95 | J32: 286189.4 | L32: ='6. Historical Wholesale'!L32 -> 198455 | M32: 2.34 | N32: 464384.7 | P32: 750574.1
B33: October | D33: ='6. Historical Wholesale'!D33 -> 194545 | E33: 3.61 | F33: 702307.45 | H33: ='6. Historical Wholesale'!H33 -> 214242 | I33: 0.95 | J33: 203529.9 | L33: ='6. Historical Wholesale'!L33 -> 148766 | M33: 2.34 | N33: 348112.44 | P33: 551642.34
B34: November | D34: ='6. Historical Wholesale'!D34 -> 113302.0114 | E34: 3.61 | F34: 409020.261 | H34: ='6. Historical Wholesale'!H34 -> 245121.6136 | I34: 0.95 | J34: 232865.533 | L34: ='6. Historical Wholesale'!L34 -> 233608.3239 | M34: 2.34 | N34: 546643.478 | P34: 779509.011
B35: December | D35: ='6. Historical Wholesale'!D35 -> 299830.9886 | E35: 3.61 | F35: 1082389.869 | H35: ='6. Historical Wholesale'!H35 -> 199130.3864 | I35: 0.95 | J35: 189173.867 | L35: ='6. Historical Wholesale'!L35 -> 71887.67606 | M35: 2.34 | N35: 168217.162 | P35: 357391.029
B37: Total | D37: =SUM(D24:D35) -> 2631663 | E37: =IF(D37<>0,F37/D37,0) -> 3.61 | F37: =SUM(F24:F35) -> 9500303.43 | H37: =SUM(H24:H35) -> 2950742.322 | I37: =IF(H37<>0,J37/H37,0) -> 0.95 | J37: =SUM(J24:J35) -> 2803205.206 | L37: =SUM(L24:L35) -> 2033342.317 | M37: =IF(L37<>0,N37/L37,0) -> 2.34 | N37: =SUM(N24:N35) -> 4758021.021 | P37: =SUM(P24:P35) -> 7561226.227
B39: Hydro One | D39: Network | H39: Line Connection | L39: Transformation Connection | P39: Total Line
B41: Month | D41: Units Billed | E41: Rate | F41: Amount | H41: Units Billed | I41: Rate | J41: Amount | L41: Units Billed | M41: Rate | N41: Amount | P41: Amount
B43: January | D43: ='6. Historical Wholesale'!D43 -> 5308.09 | E43: ='5. UTRs and Sub-Transmission'!J36 -> 3.1942 | F43: =D43*E43 -> 16955.10108 | H43: ='6. Historical Wholesale'!H43 -> 5593.37 | I43: ='5. UTRs and Sub-Transmission'!J38 -> 0.771 | J43: =H43*I43 -> 4312.48827 | L43: ='6. Historical Wholesale'!L43 -> 0 | M43: ='5. UTRs and Sub-Transmission'!J40 -> 1.7493 | N43: =L43*M43 -> 0 | P43: =J43+N43 -> 4312.48827
B44: February | D44: ='6. Historical Wholesale'!D44 -> 5012.11 | E44: =E43 -> 3.1942 | F44: 16009.68176 | H44: ='6. Historical Wholesale'!H44 -> 5256.72 | I44: =I43 -> 0.771 | J44: 4052.93112 | L44: ='6. Historical Wholesale'!L44 -> 0 | M44: =M43 -> 1.7493 | N44: 0 | P44: 4052.93112
B45: March | D45: ='6. Historical Wholesale'!D45 -> 4833 | E45: 3.1942 | F45: 15437.5686 | H45: ='6. Historical Wholesale'!H45 -> 5126.12 | I45: 0.771 | J45: 3952.23852 | L45: ='6. Historical Wholesale'!L45 -> 0 | M45: 1.7493 | N45: 0 | P45: 3952.23852
B46: April | D46: ='6. Historical Wholesale'!D46 -> 4287.64 | E46: 3.1942 | F46: 13695.57969 | H46: ='6. Historical Wholesale'!H46 -> 4287.64 | I46: 0.771 | J46: 3305.77044 | L46: ='6. Historical Wholesale'!L46 -> 0 | M46: 1.7493 | N46: 0 | P46: 3305.77044
B47: May | D47: ='6. Historical Wholesale'!D47 -> 4529 | E47: 3.1942 | F47: 14466.5318 | H47: ='6. Historical Wholesale'!H47 -> 4529 | I47: 0.771 | J47: 3491.859 | L47: ='6. Historical Wholesale'!L47 -> 0 | M47: 1.7493 | N47: 0 | P47: 3491.859
B48: June | D48: ='6. Historical Wholesale'!D48 -> 6124.06 | E48: 3.1942 | F48: 19561.47245 | H48: ='6. Historical Wholesale'!H48 -> 6124.06 | I48: 0.771 | J48: 4721.65026 | L48: ='6. Historical Wholesale'!L48 -> 0 | M48: 1.7493 | N48: 0 | P48: 4721.65026
B49: July | D49: ='6. Historical Wholesale'!D49 -> 5869.94 | E49: 3.1942 | F49: 18749.76235 | H49: ='6. Historical Wholesale'!H49 -> 5869.94 | I49: 0.771 | J49: 4525.72374 | L49: ='6. Historical Wholesale'!L49 -> 0 | M49: 1.7493 | N49: 0 | P49: 4525.72374
B50: August | D50: ='6. Historical Wholesale'!D50 -> 6129.23 | E50: 3.1942 | F50: 19577.98647 | H50: ='6. Historical Wholesale'!H50 -> 6129.23 | I50: 0.771 | J50: 4725.63633 | L50: ='6. Historical Wholesale'!L50 -> 0 | M50: 1.7493 | N50: 0 | P50: 4725.63633
B51: September | D51: ='6. Historical Wholesale'!D51 -> 12301.41 | E51: 3.1942 | F51: 39293.16382 | H51: ='6. Historical Wholesale'!H51 -> 12301.41 | I51: 0.771 | J51: 9484.38711 | L51: ='6. Historical Wholesale'!L51 -> 0 | M51: 1.7493 | N51: 0 | P51: 9484.38711
B52: October | D52: ='6. Historical Wholesale'!D52 -> 5848.5 | E52: 3.1942 | F52: 18681.2787 | H52: ='6. Historical Wholesale'!H52 -> 5848.5 | I52: 0.771 | J52: 4509.1935 | L52: ='6. Historical Wholesale'!L52 -> 0 | M52: 1.7493 | N52: 0 | P52: 4509.1935
B53: November | D53: ='6. Historical Wholesale'!D53 -> 6321.24 | E53: 3.1942 | F53: 20191.30481 | H53: ='6. Historical Wholesale'!H53 -> 6321.24 | I53: 0.771 | J53: 4873.67604 | L53: ='6. Historical Wholesale'!L53 -> 0 | M53: 1.7493 | N53: 0 | P53: 4873.67604
B54: December | D54: ='6. Historical Wholesale'!D54 -> 6844.2 | E54: 3.1942 | F54: 21861.74364 | H54: ='6. Historical Wholesale'!H54 -> 6844.2 | I54: 0.771 | J54: 5276.8782 | L54: ='6. Historical Wholesale'!L54 -> 0 | M54: 1.7493 | N54: 0 | P54: 5276.8782
B56: Total | D56: =SUM(D43:D54) -> 73408.42 | E56: =IF(D56<>0,F56/D56,0) -> 3.1942 | F56: =SUM(F43:F54) -> 234481.1752 | H56: =SUM(H43:H54) -> 74231.43 | I56: =IF(H56<>0,J56/H56,0) -> 0.771 | J56: =SUM(J43:J54) -> 57232.43253 | L56: =SUM(L43:L54) -> 0 | M56: =IF(L56<>0,N56/L56,0) -> 0 | N56: =SUM(N43:N54) -> 0 | P56: =SUM(P43:P54) -> 57232.43253
B58: ='6. Historical Wholesale'!B58 -> Add Extra Host Here (I) | D58: Network | H58: Line Connection | L58: Transformation Connection | P58: Total Line
B60: Month | D60: Units Billed | E60: Rate | F60: Amount | H60: Units Billed | I60: Rate | J60: Amount | L60: Units Billed | M60: Rate | N60: Amount | P60: Amount
B62: January | D62: ='6. Historical Wholesale'!D62 -> 0 | E62: ='5. UTRs and Sub-Transmission'!J51 -> 0 | F62: =D62*E62 -> 0 | H62: ='6. Historical Wholesale'!H62 -> 0 | I62: ='5. UTRs and Sub-Transmission'!J53 -> 0 | J62: =H62*I62 -> 0 | L62: ='6. Historical Wholesale'!L62 -> 0 | M62: ='5. UTRs and Sub-Transmission'!J55 -> 0 | N62: =L62*M62 -> 0 | P62: =J62+N62 -> 0
B63: February | D63: ='6. Historical Wholesale'!D63 -> 0 | E63: =E62 -> 0 | F63: 0 | H63: ='6. Historical Wholesale'!H63 -> 0 | I63: =I62 -> 0 | J63: 0 | L63: ='6. Historical Wholesale'!L63 -> 0 | M63: =M62 -> 0 | N63: 0 | P63: 0
B64: March | D64: ='6. Historical Wholesale'!D64 -> 0 | E64: 0 | F64: 0 | H64: ='6. Historical Wholesale'!H64 -> 0 | I64: 0 | J64: 0 | L64: ='6. Historical Wholesale'!L64 -> 0 | M64: 0 | N64: 0 | P64: 0
B65: April | D65: ='6. Historical Wholesale'!D65 -> 0 | E65: 0 | F65: 0 | H65: ='6. Historical Wholesale'!H65 -> 0 | I65: 0 | J65: 0 | L65: ='6. Historical Wholesale'!L65 -> 0 | M65: 0 | N65: 0 | P65: 0
B66: May | D66: ='6. Historical Wholesale'!D66 -> 0 | E66: 0 | F66: 0 | H66: ='6. Historical Wholesale'!H66 -> 0 | I66: 0 | J66: 0 | L66: ='6. Historical Wholesale'!L66 -> 0 | M66: 0 | N66: 0 | P66: 0
B67: June | D67: ='6. Historical Wholesale'!D67 -> 0 | E67: 0 | F67: 0 | H67: ='6. Historical Wholesale'!H67 -> 0 | I67: 0 | J67: 0 | L67: ='6. Historical Wholesale'!L67 -> 0 | M67: 0 | N67: 0 | P67: 0
B68: July | D68: ='6. Historical Wholesale'!D68 -> 0 | E68: 0 | F68: 0 | H68: ='6. Historical Wholesale'!H68 -> 0 | I68: 0 | J68: 0 | L68: ='6. Historical Wholesale'!L68 -> 0 | M68: 0 | N68: 0 | P68: 0
B69: August | D69: ='6. Historical Wholesale'!D69 -> 0 | E69: 0 | F69: 0 | H69: ='6. Historical Wholesale'!H69 -> 0 | I69: 0 | J69: 0 | L69: ='6. Historical Wholesale'!L69 -> 0 | M69: 0 | N69: 0 | P69: 0
B70: September | D70: ='6. Historical Wholesale'!D70 -> 0 | E70: 0 | F70: 0 | H70: ='6. Historical Wholesale'!H70 -> 0 | I70: 0 | J70: 0 | L70: ='6. Historical Wholesale'!L70 -> 0 | M70: 0 | N70: 0 | P70: 0
B71: October | D71: ='6. Historical Wholesale'!D71 -> 0 | E71: 0 | F71: 0 | H71: ='6. Historical Wholesale'!H71 -> 0 | I71: 0 | J71: 0 | L71: ='6. Historical Wholesale'!L71 -> 0 | M71: 0 | N71: 0 | P71: 0
B72: November | D72: ='6. Historical Wholesale'!D72 -> 0 | E72: 0 | F72: 0 | H72: ='6. Historical Wholesale'!H72 -> 0 | I72: 0 | J72: 0 | L72: ='6. Historical Wholesale'!L72 -> 0 | M72: 0 | N72: 0 | P72: 0
B73: December | D73: ='6. Historical Wholesale'!D73 -> 0 | E73: 0 | F73: 0 | H73: ='6. Historical Wholesale'!H73 -> 0 | I73: 0 | J73: 0 | L73: ='6. Historical Wholesale'!L73 -> 0 | M73: 0 | N73: 0 | P73: 0
B75: Total | D75: =SUM(D62:D73) -> 0 | E75: =IF(D75<>0,F75/D75,0) -> 0 | F75: =SUM(F62:F73) -> 0 | H75: =SUM(H62:H73) -> 0 | I75: =IF(H75<>0,J75/H75,0) -> 0 | J75: =SUM(J62:J73) -> 0 | L75: =SUM(L62:L73) -> 0 | M75: =IF(L75<>0,N75/L75,0) -> 0 | N75: =SUM(N62:N73) -> 0 | P75: =SUM(P62:P73) -> 0
B77: ='6. Historical Wholesale'!B77 -> Add Extra Host Here (II) | D77: Network | H77: Line Connection | L77: Transformation Connection | P77: Total Line
B79: Month | D79: Units Billed | E79: Rate | F79: Amount | H79: Units Billed | I79: Rate | J79: Amount | L79: Units Billed | M79: Rate | N79: Amount | P79: Amount
B81: January | D81: ='6. Historical Wholesale'!D81 -> 0 | E81: ='5. UTRs and Sub-Transmission'!J66 -> 0 | F81: =D81*E81 -> 0 | H81: ='6. Historical Wholesale'!H81 -> 0 | I81: ='5. UTRs and Sub-Transmission'!J68 -> 0 | J81: =H81*I81 -> 0 | L81: ='6. Historical Wholesale'!L81 -> 0 | M81: ='5. UTRs and Sub-Transmission'!J70 -> 0 | N81: =L81*M81 -> 0 | P81: =J81+N81 -> 0
B82: February | D82: ='6. Historical Wholesale'!D82 -> 0 | E82: =E81 -> 0 | F82: 0 | H82: ='6. Historical Wholesale'!H82 -> 0 | I82: =I81 -> 0 | J82: 0 | L82: ='6. Historical Wholesale'!L82 -> 0 | M82: =M81 -> 0 | N82: 0 | P82: 0
B83: March | D83: ='6. Historical Wholesale'!D83 -> 0 | E83: 0 | F83: 0 | H83: ='6. Historical Wholesale'!H83 -> 0 | I83: 0 | J83: 0 | L83: ='6. Historical Wholesale'!L83 -> 0 | M83: 0 | N83: 0 | P83: 0
B84: April | D84: ='6. Historical Wholesale'!D84 -> 0 | E84: 0 | F84: 0 | H84: ='6. Historical Wholesale'!H84 -> 0 | I84: 0 | J84: 0 | L84: ='6. Historical Wholesale'!L84 -> 0 | M84: 0 | N84: 0 | P84: 0
B85: May | D85: ='6. Historical Wholesale'!D85 -> 0 | E85: 0 | F85: 0 | H85: ='6. Historical Wholesale'!H85 -> 0 | I85: 0 | J85: 0 | L85: ='6. Historical Wholesale'!L85 -> 0 | M85: 0 | N85: 0 | P85: 0
B86: June | D86: ='6. Historical Wholesale'!D86 -> 0 | E86: 0 | F86: 0 | H86: ='6. Historical Wholesale'!H86 -> 0 | I86: 0 | J86: 0 | L86: ='6. Historical Wholesale'!L86 -> 0 | M86: 0 | N86: 0 | P86: 0
B87: July | D87: ='6. Historical Wholesale'!D87 -> 0 | E87: 0 | F87: 0 | H87: ='6. Historical Wholesale'!H87 -> 0 | I87: 0 | J87: 0 | L87: ='6. Historical Wholesale'!L87 -> 0 | M87: 0 | N87: 0 | P87: 0
B88: August | D88: ='6. Historical Wholesale'!D88 -> 0 | E88: 0 | F88: 0 | H88: ='6. Historical Wholesale'!H88 -> 0 | I88: 0 | J88: 0 | L88: ='6. Historical Wholesale'!L88 -> 0 | M88: 0 | N88: 0 | P88: 0
B89: September | D89: ='6. Historical Wholesale'!D89 -> 0 | E89: 0 | F89: 0 | H89: ='6. Historical Wholesale'!H89 -> 0 | I89: 0 | J89: 0 | L89: ='6. Historical Wholesale'!L89 -> 0 | M89: 0 | N89: 0 | P89: 0
B90: October | D90: ='6. Historical Wholesale'!D90 -> 0 | E90: 0 | F90: 0 | H90: ='6. Historical Wholesale'!H90 -> 0 | I90: 0 | J90: 0 | L90: ='6. Historical Wholesale'!L90 -> 0 | M90: 0 | N90: 0 | P90: 0
B91: November | D91: ='6. Historical Wholesale'!D91 -> 0 | E91: 0 | F91: 0 | H91: ='6. Historical Wholesale'!H91 -> 0 | I91: 0 | J91: 0 | L91: ='6. Historical Wholesale'!L91 -> 0 | M91: 0 | N91: 0 | P91: 0
B92: December | D92: ='6. Historical Wholesale'!D92 -> 0 | E92: 0 | F92: 0 | H92: ='6. Historical Wholesale'!H92 -> 0 | I92: 0 | J92: 0 | L92: ='6. Historical Wholesale'!L92 -> 0 | M92: 0 | N92: 0 | P92: 0
B94: Total | D94: =SUM(D81:D92) -> 0 | E94: =IF(D94<>0,F94/D94,0) -> 0 | F94: =SUM(F81:F92) -> 0 | H94: =SUM(H81:H92) -> 0 | I94: =IF(H94<>0,J94/H94,0) -> 0 | J94: =SUM(J81:J92) -> 0 | L94: =SUM(L81:L92) -> 0 | M94: =IF(L94<>0,N94/L94,0) -> 0 | N94: =SUM(N81:N92) -> 0 | P94: =SUM(P81:P92) -> 0
B96: Total | D96: Network | H96: Line Connection | L96: Transformation Connection | P96: Total Line
B98: Month | D98: Units Billed | E98: Rate | F98: Amount | H98: Units Billed | I98: Rate | J98: Amount | L98: Units Billed | M98: Rate | N98: Amount | P98: Amount
B100: January | D100: =D24+D43+D62+D81 -> 218704.09 | E100: =IF(D100<>0,F100/D100,0) -> 3.599908265 | F100: =F24+F43+F62+F81 -> 787314.6611 | H100: =H24+H43+H62+H81 -> 242934.37 | I100: =IF(H100<>0,J100/H100,0) -> 0.9458786678 | J100: =J24+J43+J62+J81 -> 229786.4383 | L100: =L24+L43+L62+L81 -> 161316 | M100: =IF(L100<>0,N100/L100,0) -> 2.34 | N100: =N24+N43+N62+N81 -> 377479.44 | P100: =J100+N100 -> 607265.8783
B101: February | D101: =D25+D44+D63+D82 -> 211929.11 | E101: 3.600166356 | F101: 762980.0518 | H101: =H25+H44+H63+H82 -> 227893.72 | I101: 0.945871089 | J101: =J25+J44+J63+J82 -> 215558.0811 | L101: =L25+L44+L63+L82 -> 146089 | M101: 2.34 | N101: =N25+N44+N63+N82 -> 341848.26 | P101: 557406.3411
B102: March | D102: 205606 | E102: 3.600226154 | F102: 740228.0986 | H102: =H26+H45+H64+H83 -> 221913.12 | I102: 0.9458651589 | J102: =J26+J45+J64+J83 -> 209899.8885 | L102: =L26+L45+L64+L83 -> 149426 | M102: 2.34 | N102: =N26+N45+N64+N83 -> 349656.84 | P102: 559556.7285
B103: April | D103: 192788.64 | E103: 3.600752563 | F103: 694184.1897 | H103: =H27+H46+H65+H84 -> 301074.9618 | I103: 0.9474508423 | J103: =J27+J46+J65+J84 -> 285253.7262 | L103: =L27+L46+L65+L84 -> 234275.3168 | M103: 2.34 | N103: =N27+N46+N65+N84 -> 548204.2414 | P103: 833457.9676
B104: May | D104: 216444 | E104: 3.601299559 | F104: 779479.6818 | H104: =H28+H47+H66+H85 -> 226998 | I104: 0.9464286425 | J104: =J28+J47+J66+J85 -> 214837.409 | L104: =L28+L47+L66+L85 -> 154165 | M104: 2.34 | N104: =N28+N47+N66+N85 -> 360746.1 | P104: 575583.509
B105: June | D105: 258081.06 | E105: 3.600133394 | F105: 929126.2425 | H105: =H29+H48+H67+H86 -> 270592.06 | I105: 0.9459488584 | J105: =J29+J48+J67+J86 -> 255966.2503 | L105: =L29+L48+L67+L86 -> 186572 | M105: 2.34 | N105: =N29+N48+N67+N86 -> 436578.48 | P105: 692544.7303
B106: July | D106: 257629.94 | E106: 3.600526252 | F106: 927603.3623 | H106: =H30+H49+H68+H87 -> 285067.94 | I106: 0.9463141444 | J106: =J30+J49+J68+J87 -> 269763.8237 | L106: =L30+L49+L68+L87 -> 181098 | M106: 2.34 | N106: =N30+N49+N68+N87 -> 423769.32 | P106: 693533.1437
B107: August | D107: 243488.23 | E107: 3.599533236 | F107: 876443.9765 | H107: =H31+H50+H69+H88 -> 257438.23 | I107: 0.9457382702 | J107: =J31+J50+J69+J88 -> 243469.1863 | L107: =L31+L50+L69+L88 -> 167684 | M107: 2.34 | N107: =N31+N50+N69+N88 -> 392380.56 | P107: 635849.7463
B108: September | D108: 273708.41 | E108: 3.591312499 | F108: 982972.4338 | H108: =H32+H51+H70+H89 -> 313553.41 | I108: 0.9429774248 | J108: =J32+J51+J70+J89 -> 295673.7871 | L108: =L32+L51+L70+L89 -> 198455 | M108: 2.34 | N108: =N32+N51+N70+N89 -> 464384.7 | P108: 760058.4871
B109: October | D109: 200393.5 | E109: 3.597864844 | F109: 720988.7287 | H109: =H33+H52+H71+H90 -> 220090.5 | I109: 0.9452434044 | J109: =J33+J52+J71+J90 -> 208039.0935 | L109: =L33+L52+L71+L90 -> 148766 | M109: 2.34 | N109: =N33+N52+N71+N90 -> 348112.44 | P109: 556151.5335
B110: November | D110: 119623.2514 | E110: 3.58802792 | F110: 429211.5658 | H110: =H34+H53+H72+H91 -> 251442.8536 | I110: 0.9454999637 | J110: =J34+J53+J72+J91 -> 237739.209 | L110: =L34+L53+L72+L91 -> 233608.3239 | M110: 2.34 | N110: =N34+N53+N72+N91 -> 546643.478 | P110: 784382.687
B111: December | D111: 306675.1886 | E111: 3.600720415 | F111: 1104251.613 | H111: =H35+H54+H73+H92 -> 205974.5864 | I111: 0.9440521216 | J111: =J35+J54+J73+J92 -> 194450.7452 | L111: =L35+L54+L73+L92 -> 71887.67606 | M111: 2.34 | N111: =N35+N54+N73+N92 -> 168217.162 | P111: 362667.9072
B113: Total | D113: =SUM(D100:D111) -> 2705071.42 | E113: =IF(D113<>0,F113/D113,0) -> 3.598716298 | F113: =SUM(F100:F111) -> 9734784.605 | H113: =SUM(H100:H111) -> 3024973.752 | I113: =IF(H113<>0,J113/H113,0) -> 0.9456074244 | J113: =SUM(J100:J111) -> 2860437.638 | L113: =SUM(L100:L111) -> 2033342.317 | M113: =IF(L113<>0,N113/L113,0) -> 2.34 | N113: =SUM(N100:N111) -> 4758021.021 | P113: =SUM(P100:P111) -> 7618458.66
N115: Low Voltage Switchgear Credit (if applicable) | P115: ='5. UTRs and Sub-Transmission'!J75 -> 0
N117: Total including deduction for Low Voltage Switchgear Credit | P117: =P113+P115 -> 7618458.66

Sheet 9. RTSR Rates to Forecast
A13: The purpose of this sheet is to re-align the current RTS Network Rates to recover current wholesale network costs.
A15: Rate Class | B15: Rate Description | C15: Unit | D15: Current RTSR-Network | E15: Loss Adjusted Billed kWh | F15: Billed kW | G15: Billed Amount | H15: Billed Amount % | I15: Current Wholesale Billing | J15: Adjusted RTSR Network
A17: Residential | B17: RTSR - Network | C17: kWh | D17: 0.005939923871 | E17: 401740257.3 | G17: =ROUND(D17*E17, 2) -> 2386306.54 | H17: =G17/10051937.19 -> 0.2373976772 | I17: =H17*total_current_wholesale_network -> 2311015.253 | J17: =IF(ISERROR(I17/E17), 0, I17/E17) -> 0.00575251101
A18: General Service Less Than 50 kW | B18: RTSR - Network | C18: kWh | D18: 0.0052 | E18: 157411270.3 | G18: =ROUND(D18*E18, 2) -> 818538.61 | H18: =G18/10051937.19 -> 0.08143093162 | I18: =H18*total_current_wholesale_network -> 792712.5796 | J18: =IF(ISERROR(I18/E18), 0, I18/E18) -> 0.005035932803
A19: General Service 50 to 999 kW | B19: RTSR - Network | C19: kW | D19: 3.3563 | F19: 1355886.709 | G19: =ROUND(D19*F19, 2) -> 4550762.56 | H19: =G19/10051937.19 -> 0.4527249299 | I19: =H19*total_current_wholesale_network -> 4407179.678 | J19: =IF(ISERROR(I19/F19), 0, I19/F19) -> 3.250404071
A20: General Service 1,000 to 4,999 kW | B20: RTSR - Network | C20: kW | D20: 2.5491 | F20: 444690.8274 | G20: =ROUND(D20*F20, 2) -> 1133561.39 | H20: =G20/10051937.19 -> 0.112770441 | I20: =H20*total_current_wholesale_network -> 1097795.953 | J20: =IF(ISERROR(I20/F20), 0, I20/F20) -> 2.468672357
A21: Large Use | B21: RTSR - Network | C21: kW | D21: 2.4156 | F21: 330833.3107 | G21: =ROUND(D21*F21, 2) -> 799160.95 | H21: =G21/10051937.19 -> 0.07950317783 | I21: =H21*total_current_wholesale_network -> 773946.3116 | J21: =IF(ISERROR(I21/F21), 0, I21/F21) -> 2.339384477
A22: Street Lighting | B22: RTSR - Network | C22: kW | D22: 1.6867 | F22: 9896.266398 | G22: =ROUND(D22*F22, 2) -> 16692.03 | H22: =G22/10051937.19 -> 0.001660578422 | I22: =H22*total_current_wholesale_network -> 16165.37326 | J22: =IF(ISERROR(I22/F22), 0, I22/F22) -> 1.633482023
A23: Unmetered Scattered Load | B23: RTSR - Network | C23: kWh | D23: 0.0052 | E23: 2123009.147 | G23: =ROUND(D23*E23, 2) -> 11039.65 | H23: =G23/10051937.19 -> 0.001098260941 | I23: =H23*total_current_wholesale_network -> 10691.3337 | J23: =IF(ISERROR(I23/E23), 0, I23/E23) -> 0.005035933886
A24: Embedded Distributor | B24: RTSR - Network | C24: kW | D24: 2.4156 | F24: 114656.8844 | G24: =ROUND(D24*F24, 2) -> 276965.17 | H24: =G24/10051937.19 -> 0.02755341232 | I24: =H24*total_current_wholesale_network -> 268226.5341 | J24: =IF(ISERROR(I24/F24), 0, I24/F24) -> 2.339384465
A25: Embedded Distributor | B25: RTSR - Network | C25: kW | D25: 2.4156 | F25: 24387.43564 | G25: =ROUND(D25*F25, 2) -> 58910.29 | H25: =G25/10051937.19 -> 0.005860590739 | I25: =H25*total_current_wholesale_network -> 57051.5885 | J25: =IF(ISERROR(I25/F25), 0, I25/F25) -> 2.339384482
A27: The purpose of this table is to re-align the current RTS Connection Rates to recover current wholesale connection costs.
A28: Rate Class | B28: Rate Description | C28: Unit | D28: Current RTSR-Connection | E28: Loss Adjusted Billed kWh | F28: Billed kW | G28: Billed Amount | H28: Billed Amount % | I28: Current Wholesale Billing | J28: Adjusted RTSR-Connection
A30: Residential | B30: RTSR - Connection | C30: kWh | D30: 0.0044 | E30: 401740257.3 | G30: =ROUND(D30*E30, 2) -> 1767657.13 | H30: =G30/7602838.62 -> 0.2324996253 | I30: =H30*Total_Current_Wholesale_Lineplus -> 1771288.783 | J30: =IF(ISERROR(I30/E30), 0, I30/E30) -> 0.0044090398
A31: General Service Less Than 50 kW | B31: RTSR - Connection | C31: kWh | D31: 0.0041 | E31: 157411270.3 | G31: =ROUND(D31*E31, 2) -> 645386.21 | H31: =G31/7602838.62 -> 0.08488753244 | I31: =H31*Total_Current_Wholesale_Lineplus -> 646712.1566 | J31: =IF(ISERROR(I31/E31), 0, I31/E31) -> 0.004108423466
A32: General Service 50 to 999 kW | B32: RTSR - Connection | C32: kW | D32: 2.4847 | F32: 1355886.709 | G32: =ROUND(D32*F32, 2) -> 3368971.71 | H32: =G32/7602838.62 -> 0.4431202447 | I32: =H32*Total_Current_Wholesale_Lineplus -> 3375893.266 | J32: =IF(ISERROR(I32/F32), 0, I32/F32) -> 2.489804822
A33: General Service 1,000 to 4,999 kW | B33: RTSR - Connection | C33: kW | D33: 1.9499 | F33: 444690.8274 | G33: =ROUND(D33*F33, 2) -> 867102.64 | H33: =G33/7602838.62 -> 0.1140498547 | I33: =H33*Total_Current_Wholesale_Lineplus -> 868884.1033 | J33: =IF(ISERROR(I33/F33), 0, I33/F33) -> 1.953906062
A34: Large Use | B34: RTSR - Connection | C34: kW | D34: 1.9849 | F34: 330833.3107 | G34: =ROUND(D34*F34, 2) -> 656671.04 | H34: =G34/7602838.62 -> 0.08637182411 | I34: =H34*Total_Current_Wholesale_Lineplus -> 658020.1713 | J34: =IF(ISERROR(I34/F34), 0, I34/F34) -> 1.988977984
A35: Street Lighting | B35: RTSR - Connection | C35: kW | D35: 1.2486 | F35: 9896.266398 | G35: =ROUND(D35*F35, 2) -> 12356.48 | H35: =G35/7602838.62 -> 0.001625245598 | I35: =H35*Total_Current_Wholesale_Lineplus -> 12381.8664 | J35: =IF(ISERROR(I35/F35), 0, I35/F35) -> 1.25116543
A36: Unmetered Scattered Load | B36: RTSR - Connection | C36: kWh | D36: 0.0041 | E36: 2123009.147 | G36: =ROUND(D36*E36, 2) -> 8704.34 | H36: =G36/7602838.62 -> 0.001144880279 | I36: =H36*Total_Current_Wholesale_Lineplus -> 8722.223075 | J36: =IF(ISERROR(I36/E36), 0, I36/E36) -> 0.004108424633
A37: Embedded Distributor | B37: RTSR - Connection | C37: kW | D37: 1.9849 | F37: 114656.8844 | G37: =ROUND(D37*F37, 2) -> 227582.45 | H37: =G37/7602838.62 -> 0.02993387883 | I37: =H37*Total_Current_Wholesale_Lineplus -> 228050.0184 | J37: =IF(ISERROR(I37/F37), 0, I37/F37) -> 1.988977981
A38: Embedded Distributor | B38: RTSR - Connection | C38: kW | D38: 1.9849 | F38: 24387.43564 | G38: =ROUND(D38*F38, 2) -> 48406.62 | H38: =G38/7602838.62 -> 0.006366914046 | I38: =H38*Total_Current_Wholesale_Lineplus -> 48506.07145 | J38: =IF(ISERROR(I38/F38), 0, I38/F38) -> 1.988977938
A40: The purpose of this table is to update the re-aligned RTS Network Rates to recover future wholesale network costs.
A41: Rate Class | B41: Rate Description | C41: Unit | D41: Adjusted RTSR-Network | E41: Loss Adjusted Billed kWh | F41: Billed kW | G41: Billed Amount | H41: Billed Amount % | I41: Current Wholesale Billing | J41: Proposed RTSR-Network
A43: Residential | B43: RTSR - Network | C43: kWh | D43: 0.00575251101 | E43: 401740257.3 | G43: =IF(ISERROR(D43*E43), 0, ROUND(D43*E43, 2)) -> 2311015.25 | H43: =G43/9734784.59 -> 0.2373976772 | I43: =H43*forecast_wholesale_network -> 2311015.254 | J43: =IF(ISERROR(I43/E43), 0, I43/E43) -> 0.005752511011
A44: General Service Less Than 50 kW | B44: RTSR - Network | C44: kWh | D44: 0.005035932803 | E44: 157411270.3 | G44: =IF(ISERROR(D44*E44), 0, ROUND(D44*E44, 2)) -> 792712.58 | H44: =G44/9734784.59 -> 0.0814309318 | I44: =H44*forecast_wholesale_network -> 792712.5812 | J44: =IF(ISERROR(I44/E44), 0, I44/E44) -> 0.005035932813
A45: General Service 50 to 999 kW | B45: RTSR - Network | C45: kW | D45: 3.250404071 | F45: 1355886.709 | G45: =ROUND(D45*F45, 2) -> 4407179.68 | H45: =G45/9734784.59 -> 0.4527249308 | I45: =H45*forecast_wholesale_network -> 4407179.687 | J45: =IF(ISERROR(I45/F45), 0, I45/F45) -> 3.250404078
A46: General Service 1,000 to 4,999 kW | B46: RTSR - Network | C46: kW | D46: 2.468672357 | F46: 444690.8274 | G46: =ROUND(D46*F46, 2) -> 1097795.95 | H46: =G46/9734784.59 -> 0.1127704409 | I46: =H46*forecast_wholesale_network -> 1097795.952 | J46: =IF(ISERROR(I46/F46), 0, I46/F46) -> 2.468672354
A47: Large Use | B47: RTSR - Network | C47: kW | D47: 2.339384477 | F47: 330833.3107 | G47: =ROUND(D47*F47, 2) -> 773946.31 | H47: =G47/9734784.59 -> 0.07950317779 | I47: =H47*forecast_wholesale_network -> 773946.3112 | J47: =IF(ISERROR(I47/F47), 0, I47/F47) -> 2.339384476
A48: Street Lighting | B48: RTSR - Network | C48: kW | D48: 1.633482023 | F48: 9896.266398 | G48: =ROUND(D48*F48, 2) -> 16165.37 | H48: =G48/9734784.59 -> 0.00166057809 | I48: =H48*forecast_wholesale_network -> 16165.37003 | J48: =IF(ISERROR(I48/F48), 0, I48/F48) -> 1.633481697
A49: Unmetered Scattered Load | B49: RTSR - Network | C49: kWh | D49: 0.005035933886 | E49: 2123009.147 | G49: =IF(ISERROR(D49*E49), 0, ROUND(D49*E49, 2)) -> 10691.33 | H49: =G49/9734784.59 -> 0.001098260563 | I49: =H49*forecast_wholesale_network -> 10691.33002 | J49: =IF(ISERROR(I49/E49), 0, I49/E49) -> 0.00503593215
A50: Embedded Distributor | B50: RTSR - Network | C50: kW | D50: 2.339384465 | F50: 114656.8844 | G50: =ROUND(D50*F50, 2) -> 268226.53 | H50: =G50/9734784.59 -> 0.02755341194 | I50: =H50*forecast_wholesale_network -> 268226.5304 | J50: =IF(ISERROR(I50/F50), 0, I50/F50) -> 2.339384433
A51: Embedded Distributor | B51: RTSR - Network | C51: kW | D51: 2.339384482 | F51: 24387.43564 | G51: =ROUND(D51*F51, 2) -> 57051.59 | H51: =G51/9734784.59 -> 0.005860590902 | I51: =H51*forecast_wholesale_network -> 57051.59009 | J51: =IF(ISERROR(I51/F51), 0, I51/F51) -> 2.339384548
A53: The purpose of this table is to update the re-aligned RTS Connection Rates to recover future wholesale connection costs.
A54: Rate Class | B54: Rate Description | C54: Unit | D54: Adjusted RTSR-Connection | E54: Loss Adjusted Billed kWh | F54: Billed kW | G54: Billed Amount | H54: Billed Amount % | I54: Current Wholesale Billing | J54: Proposed RTSR-Connection
A56: Residential | B56: RTSR - Connection | C56: kWh | D56: 0.0044090398 | E56: 401740257.3 | G56: =ROUND(D56*E56, 2) -> 1771288.78 | H56: =G56/7618458.66 -> 0.2324996248 | I56: =H56*forecast_wholesale_lineplus -> 1771288.78 | J56: =IF(ISERROR(I56/E56), 0, I56/E56) -> 0.004409039791
A57: General Service Less Than 50 kW | B57: RTSR - Connection | C57: kWh | D57: 0.004108423466 | E57: 157411270.3 | G57: =ROUND(D57*E57, 2) -> 646712.16 | H57: =G57/7618458.66 -> 0.08488753288 | I57: =H57*forecast_wholesale_lineplus -> 646712.16 | J57: =IF(ISERROR(I57/E57), 0, I57/E57) -> 0.004108423487
A58: General Service 50 to 999 kW | B58: RTSR - Connection | C58: kW | D58: 2.489804822 | F58: 1355886.709 | G58: =ROUND(D58*F58, 2) -> 3375893.27 | H58: =G58/7618458.66 -> 0.4431202453 | I58: =H58*forecast_wholesale_lineplus -> 3375893.27 | J58: =IF(ISERROR(I58/F58), 0, I58/F58) -> 2.489804825
A59: General Service 1,000 to 4,999 kW | B59: RTSR - Connection | C59: kW | D59: 1.953906062 | F59: 444690.8274 | G59: =ROUND(D59*F59, 2) -> 868884.1 | H59: =G59/7618458.66 -> 0.1140498543 | I59: =H59*forecast_wholesale_lineplus -> 868884.1 | J59: =IF(ISERROR(I59/F59), 0, I59/F59) -> 1.953906054
A60: Large Use | B60: RTSR - Connection | C60: kW | D60: 1.988977984 | F60: 330833.3107 | G60: =ROUND(D60*F60, 2) -> 658020.17 | H60: =G60/7618458.66 -> 0.08637182393 | I60: =H60*forecast_wholesale_lineplus -> 658020.17 | J60: =IF(ISERROR(I60/F60), 0, I60/F60) -> 1.98897798
A61: Street Lighting | B61: RTSR - Connection | C61: kW | D61: 1.25116543 | F61: 9896.266398 | G61: =ROUND(D61*F61, 2) -> 12381.87 | H61: =G61/7618458.66 -> 0.00162524607 | I61: =H61*forecast_wholesale_lineplus -> 12381.87 | J61: =IF(ISERROR(I61/F61), 0, I61/F61) -> 1.251165793
A62: Unmetered Scattered Load | B62: RTSR - Connection | C62: kWh | D62: 0.004108424633 | E62: 2123009.147 | G62: =ROUND(D62*E62, 2) -> 8722.22 | H62: =G62/7618458.66 -> 0.001144879875 | I62: =H62*forecast_wholesale_lineplus -> 8722.22 | J62: =IF(ISERROR(I62/E62), 0, I62/E62) -> 0.004108423184
A63: Embedded Distributor | B63: RTSR - Connection | C63: kW | D63: 1.988977981 | F63: 114656.8844 | G63: =ROUND(D63*F63, 2) -> 228050.02 | H63: =G63/7618458.66 -> 0.02993387904 | I63: =H63*forecast_wholesale_lineplus -> 228050.02 | J63: =IF(ISERROR(I63/F63), 0, I63/F63) -> 1.988977995
A64: Embedded Distributor | B64: RTSR - Connection | C64: kW | D64: 1.988977938 | F64: 24387.43564 | G64: =ROUND(D64*F64, 2) -> 48506.07 | H64: =G64/7618458.66 -> 0.006366913856 | I64: =H64*forecast_wholesale_lineplus -> 48506.07 | J64: =IF(ISERROR(I64/F64), 0, I64/F64) -> 1.988977878

Sheet hidden1 (hidden)
A1: =IF('3. Rate Classes'!L17=1, '3. Rate Classes'!C17, "") -> Residential | B1: 1
A2: =IF('3. Rate Classes'!L18=1, '3. Rate Classes'!C18, "") -> General Service Less Than 50 kW | B2: 2
A3: =IF('3. Rate Classes'!L19=1, '3. Rate Classes'!C19, "") -> General Service 50 to 999 kW | B3: 3
A4: =IF('3. Rate Classes'!L20=1, '3. Rate Classes'!C20, "") -> General Service 1,000 to 4,999 kW | B4: 4
A5: =IF('3. Rate Classes'!L21=1, '3. Rate Classes'!C21, "") -> Large Use | B5: 5
A6: =IF('3. Rate Classes'!L22=1, '3. Rate Classes'!C22, "") -> Street Lighting | B6: 6
A7: =IF('3. Rate Classes'!L23=1, '3. Rate Classes'!C23, "") -> Unmetered Scattered Load | B7: 7
A8: =IF('3. Rate Classes'!L24=1, '3. Rate Classes'!C24, "") -> Embedded Distributor | B8: 8
A9: =IF('3. Rate Classes'!L25=1, '3. Rate Classes'!C25, "") -> Embedded Distributor | B9: 9
A10: =IF('3. Rate Classes'!L26=1, '3. Rate Classes'!C26, "") ->  | B10: 10
A11: =IF('3. Rate Classes'!L27=1, '3. Rate Classes'!C27, "") ->  | B11: 11
A12: =IF('3. Rate Classes'!L28=1, '3. Rate Classes'!C28, "") ->  | B12: 12
A13: =IF('3. Rate Classes'!L29=1, '3. Rate Classes'!C29, "") ->  | B13: 13
A14: =IF('3. Rate Classes'!L30=1, '3. Rate Classes'!C30, "") ->  | B14: 14
A15: =IF('3. Rate Classes'!L31=1, '3. Rate Classes'!C31, "") ->  | B15: 15
A16: =IF('3. Rate Classes'!L32=1, '3. Rate Classes'!C32, "") ->  | B16: 16
A17: =IF('3. Rate Classes'!L33=1, '3. Rate Classes'!C33, "") ->  | B17: 17
A18: =IF('3. Rate Classes'!L34=1, '3. Rate Classes'!C34, "") ->  | B18: 18
A19: =IF('3. Rate Classes'!L35=1, '3. Rate Classes'!C35, "") ->  | B19: 19
A20: =IF('3. Rate Classes'!L36=1, '3. Rate Classes'!C36, "") ->  | B20: 20
A21: =IF('3. Rate Classes'!L37=1, '3. Rate Classes'!C37, "") ->  | B21: 21
A22: =IF('3. Rate Classes'!L38=1, '3. Rate Classes'!C38, "") ->  | B22: 22
